Workbook

Sheet 01 01 KL
A1: POLOŽKOVÝ ROZPOČET
A2: Rozpočet | C2: 01 | D2: 1.etapa | F2: JKSO
A4: Objekt | F4: SKP
A5: 05 | C5: 1.etapa | F5: Měrná jednotka
A6: Stavba | F6: Počet jednotek | G6: 0
A7: Červ1302 | C7: Červ1811 Odvlhčení kaple a špitálku sv. Anny | F7: Náklady na m.j. | G7: =IF(G6=0,,ROUND((F30+F32)/G6,1)) -> 0
A8: Projektant | C8: Ing.Jan Červenák a Ing.Arch.Jan Čepelák | F8: Typ rozpočtu
A9: Zpracovatel projektu
A10: Objednatel | C10: Muzeum Vyškovska, p.o.
A11: Dodavatel | C11: bude určen výběrovým řízením | F11: Zakázkové číslo
A12: Rozpočtoval | F12: Počet listů
A13: ROZPOČTOVÉ NÁKLADY
A14: Základní rozpočtové náklady | D14: Ostatní rozpočtové náklady
B15: HSV celkem | C15: ='01 01 Rek'!E32 -> 0 | D15: ='01 01 Rek'!A37 -> Ztížené výrobní podmínky | G15: ='01 01 Rek'!I37 -> 0
A16: Z | B16: PSV celkem | C16: ='01 01 Rek'!F32 -> 0 | D16: ='01 01 Rek'!A38 -> Oborová přirážka | G16: ='01 01 Rek'!I38 -> 0
A17: R | B17: M práce celkem | C17: ='01 01 Rek'!H32 -> 0 | D17: ='01 01 Rek'!A39 -> Přesun stavebních kapacit | G17: ='01 01 Rek'!I39 -> 0
A18: N | B18: M dodávky celkem | C18: ='01 01 Rek'!G32 -> 0 | D18: ='01 01 Rek'!A40 -> Mimostaveništní doprava | G18: ='01 01 Rek'!I40 -> 0
A19: ZRN celkem | C19: =SUM(C15:C18) -> 0 | D19: ='01 01 Rek'!A41 -> Zařízení staveniště | G19: ='01 01 Rek'!I41 -> 0
D20: ='01 01 Rek'!A42 -> Provoz investora | G20: ='01 01 Rek'!I42 -> 0
A21: HZS | C21: ='01 01 Rek'!I32 -> 0 | D21: ='01 01 Rek'!A43 -> Kompletační činnost (IČD) | G21: ='01 01 Rek'!I43 -> 0
A22: ZRN+HZS | C22: =C19+C21 -> 0 | D22: Ostatní náklady neuvedené | G22: ='01 01 Rek'!I44 -> 0
A23: ZRN+ost.náklady+HZS | C23: =C22+G23 -> 0 | D23: Ostatní náklady celkem | G23: =SUM(G15:G22) -> 0
A24: Vypracoval | D24: Za zhotovitele | F24: Za objednatele
A25: Jméno : | D25: Jméno : | F25: Jméno :
A26: Datum : | D26: Datum : | F26: Datum :
A28: Podpis : | D28: Podpis: | F28: Podpis:
A30: Základ pro DPH | C30: 21 | D30: % | F30: =C23-F32 -> 0
A31: DPH | C31: =C30 -> 21 | D31: % | F31: =ROUND(PRODUCT(F30,C31/100),0) -> 0
A32: Základ pro DPH | C32: 0 | D32: % | F32: 0
A33: DPH | C33: =C32 -> 0 | D33: % | F33: =ROUND(PRODUCT(F32,C33/100),0) -> 0
A34: CENA ZA OBJEKT CELKEM | F34: =ROUND(SUM(F30:F33),0) -> 0
A36: Poznámka :

Sheet 01 01 Rek
A1: Stavba : | C1: Červ1811 Odvlhčení kaple a špitálku sv. Anny | G1: Rozpočet : | H1: 01
A2: Objekt : | C2: 01 1.etapa | G2: 1.etapa
A4: REKAPITULACE STAVEBNÍCH DÍLŮ
B6: Stavební díl | E6: HSV | F6: PSV | G6: Dodávka | H6: Montáž | I6: HZS
A7: ='01 01 Pol'!B7 -> 1 | B7: ='01 01 Pol'!C7 -> Zemní práce | E7: ='01 01 Pol'!G28 -> 0 | F7: ='01 01 Pol'!BB28 -> 0 | G7: ='01 01 Pol'!BC28 -> 0 | H7: ='01 01 Pol'!BD28 -> 0 | I7: ='01 01 Pol'!BE28 -> 0
A8: ='01 01 Pol'!B29 -> 2 | B8: ='01 01 Pol'!C29 -> Základy a zvláštní zakládání | E8: ='01 01 Pol'!G35 -> 0 | F8: ='01 01 Pol'!BB35 -> 0 | G8: ='01 01 Pol'!BC35 -> 0 | H8: ='01 01 Pol'!BD35 -> 0 | I8: ='01 01 Pol'!BE35 -> 0
A9: 3 | B9: Svislé a kompletní konstrukce | E9: ='01 01 Pol'!G41 -> 0
A10: ='01 01 Pol'!B42 -> 5 | B10: ='01 01 Pol'!C42 -> Komunikace | E10: ='01 01 Pol'!G44 -> 0 | F10: ='01 01 Pol'!BB44 -> 0 | G10: ='01 01 Pol'!BC44 -> 0 | H10: ='01 01 Pol'!BD44 -> 0 | I10: ='01 01 Pol'!BE44 -> 0
A11: 61 | B11: Upravy povrchů vnitřní | E11: ='01 01 Pol'!G62 -> 0 | F11: ='01 01 Pol'!BB45 -> 0 | G11: ='01 01 Pol'!BC45 -> 0 | H11: ='01 01 Pol'!BD45 -> 0 | I11: ='01 01 Pol'!BE45 -> 0
A12: ='01 01 Pol'!B63 -> 62 | B12: ='01 01 Pol'!C63 -> Úpravy povrchů vnější | E12: ='01 01 Pol'!G73 -> 0 | F12: ='01 01 Pol'!BB75 -> 0 | G12: ='01 01 Pol'!BC75 -> 0 | H12: ='01 01 Pol'!BD75 -> 0 | I12: ='01 01 Pol'!BE75 -> 0
A13: ='01 01 Pol'!B74 -> 63 | B13: ='01 01 Pol'!C74 -> Podlahy a podlahové konstrukce | E13: ='01 01 Pol'!G86 -> 0 | F13: ='01 01 Pol'!BB88 -> 0 | G13: ='01 01 Pol'!BC88 -> 0 | H13: ='01 01 Pol'!BD88 -> 0 | I13: ='01 01 Pol'!BE88 -> 0
A14: ='01 01 Pol'!B87 -> 8 | B14: ='01 01 Pol'!C87 -> Trubní vedení | E14: ='01 01 Pol'!G91 -> 0 | F14: ='01 01 Pol'!BB93 -> 0 | G14: ='01 01 Pol'!BC93 -> 0 | H14: ='01 01 Pol'!BD93 -> 0 | I14: ='01 01 Pol'!BE93 -> 0
A15: ='01 01 Pol'!B92 -> 96 | B15: ='01 01 Pol'!C92 -> Bourání konstrukcí | E15: ='01 01 Pol'!G95 -> 0 | F15: ='01 01 Pol'!BB97 -> 0 | G15: ='01 01 Pol'!BC97 -> 0 | H15: ='01 01 Pol'!BD97 -> 0 | I15: ='01 01 Pol'!BE97 -> 0
A16: ='01 01 Pol'!B96 -> 97 | B16: ='01 01 Pol'!C96 -> Prorážení otvorů | E16: ='01 01 Pol'!G99 -> 0 | F16: ='01 01 Pol'!BB101 -> 0 | G16: ='01 01 Pol'!BC101 -> 0 | H16: ='01 01 Pol'!BD101 -> 0 | I16: ='01 01 Pol'!BE101 -> 0
A17: ='01 01 Pol'!B100 -> 99 | B17: ='01 01 Pol'!C100 -> Staveništní přesun hmot | E17: ='01 01 Pol'!G102 -> 0 | F17: ='01 01 Pol'!BB104 -> 0 | G17: ='01 01 Pol'!BC104 -> 0 | H17: ='01 01 Pol'!BD104 -> 0 | I17: ='01 01 Pol'!BE104 -> 0
A18: ='01 01 Pol'!B103 -> 711 | B18: ='01 01 Pol'!C103 -> Izolace proti vodě | F18: ='01 01 Pol'!G109 -> 0 | G18: ='01 01 Pol'!BC122 -> 0 | H18: ='01 01 Pol'!BD122 -> 0 | I18: ='01 01 Pol'!BE122 -> 0
A19: 713 | B19: Izolace tepelné | F19: ='01 01 Pol'!G120 -> 0
A20: 730 | B20: Ústřední vytápění | F20: ='01 01 Pol'!$G$124 -> 0 | G20: 0 | H20: 0 | I20: 0
A21: 762 | B21: Konstrukce tesařské | F21: ='01 01 Pol'!G132 -> 0 | G21: 0 | H21: 0 | I21: 0
A22: 764 | B22: Konstrukce klempířské | F22: ='01 01 Pol'!G140 -> 0 | G22: 0 | H22: 0 | I22: 0
A23: 766 | B23: Konstrukcě truhlářské | F23: ='01 01 Pol'!G148 -> 0 | G23: 0 | H23: 0 | I23: 0
A24: 767 | B24: Konstrukce zámečnické | F24: ='01 01 Pol'!G152 -> 0
A25: 771 | B25: ='01 01 Pol'!C153 -> Podlahy z dlaždic a obklady | F25: ='01 01 Pol'!G158 -> 0 | G25: ='01 01 Pol'!BC156 -> 0 | H25: ='01 01 Pol'!BD156 -> 0 | I25: ='01 01 Pol'!BE156 -> 0
A26: 784 | B26: Malby | F26: ='01 01 Pol'!G162 -> 0
A27: Rest | B27: Restaurátorské práce | F27: ='01 01 Pol'!G166 -> 0
A28: M21 | B28: Elektromontáže | H28: ='01 01 Pol'!G170 -> 0
A29: M22 | B29: Montáže sdělovací a zabezpečovací techniky | H29: ='01 01 Pol'!G175 -> 0
A30: M36 | B30: Montáže měřícía regulační techniky | H30: ='01 01 Pol'!G179 -> 0
A31: D96 | B31: ='01 01 Pol'!C180 -> Přesuny suti a vybouraných hmot | E31: ='01 01 Pol'!G188 -> 0 | F31: 0 | G31: 0 | H31: 0 | I31: 0
B32: CELKEM OBJEKT | E32: =SUM(E7:E31) -> 0 | F32: =SUM(F7:F31) -> 0 | G32: 0 | H32: =SUM(H7:H31) -> 0 | I32: 0
A35: VEDLEJŠÍ ROZPOČTOVÉ NÁKLADY
A36: Název VRN | E36: Kč | F36: % | G36: Základna | I36: Kč
A37: Ztížené výrobní podmínky | E37: 0 | F37: 2 | G37: =SUM(E32+F32+G32+H32+I32) -> 0 | I37: =E37+F37*G37/100 -> 0 | BA37: 2
A38: Oborová přirážka | E38: 0 | F38: 2 | I38: 0 | BA38: 2
A39: Přesun stavebních kapacit | E39: 0 | F39: 2 | I39: 0 | BA39: 2
A40: Mimostaveništní doprava | E40: 0 | F40: 5 | I40: 0 | BA40: 2
A41: Zařízení staveniště | E41: 0 | F41: 4.5 | I41: 0 | BA41: 2
A42: Provoz investora | E42: 0 | F42: 2 | I42: 0 | BA42: 2
A43: Kompletační činnost (IČD) | E43: 0 | F43: 2 | I43: 0 | BA43: 2
A44: Rezerva rozpočtu | E44: 0 | F44: 13 | I44: 0 | BA44: 2
B45: CELKEM VRN | H45: =SUM(I37:I44) -> 0

Sheet 01 01 Pol
A1: Položkový rozpočet
A3: Stavba : | C3: Červ1811 Odvlhčení kaple a špitálku sv. Anny | E3: Rozpočet: | F3: ='01 01 Rek'!H1 -> 01
A4: Objekt : | C4: 01 1.etapa | E4: 1.etapa
A6: P.č. | B6: Číslo položky | C6: Název položky | D6: MJ | E6: množství | F6: cena / MJ | G6: celkem (Kč) | H6: Jednotková hmotnost | I6: Celková hmotnost | J6: Jednotková dem.hmot. | K6: Celková dem.hmot.
A7: Díl: | B7: 1 | C7: Zemní práce | O7: 1
A8: 1 | B8: 113106111R00 | C8: Rozebrání dlažeb z kamenných kostek | D8: m2 | E8: 22.8 | G8: =E8*F8 -> 0
A10: 2 | B10: 130001101R00 | C10: Příplatek za ztížené hloubení v blízkosti vedení | D10: m3 | E10: 23.04 | G10: =E10*F10 -> 0 | H10: 0 | I10: =E10*H10 -> 0 | J10: 0 | K10: =E10*J10 -> 0 | AA10: 1 | AB10: 1 | AC10: 1 | AZ10: 1 | BA10: =IF(AZ10=1,G10,0) -> 0 | BB10: =IF(AZ10=2,G10,0) -> 0 | BC10: =IF(AZ10=3,G10,0) -> 0 | BD10: =IF(AZ10=4,G10,0) -> 0 | BE10: =IF(AZ10=5,G10,0) -> 0 | CA10: 1 | CB10: 1
C11: VVK | E11: 23.04
A12: 3 | B12: 132201101R00 | C12: Hloubení rýh šířky do 120 cm v hor.3 do 100 m3 | D12: m3 | E12: 23.04 | G12: =E12*F12 -> 0 | H12: 0 | I12: =E12*H12 -> 0 | J12: 0 | K12: =E12*J12 -> 0 | AA12: 1 | AB12: 1 | AC12: 1 | AZ12: 1 | BA12: =IF(AZ12=1,G12,0) -> 0 | BB12: =IF(AZ12=2,G12,0) -> 0 | BC12: =IF(AZ12=3,G12,0) -> 0 | BD12: =IF(AZ12=4,G12,0) -> 0 | BE12: =IF(AZ12=5,G12,0) -> 0 | CA12: 1 | CB12: 1
A13: 4 | B13: 139711101R00 | C13: Vykopávka v uzavřených prostorách v hor.1-4 | D13: m3 | E13: 52.7 | G13: =E13*F13 -> 0 | H13: 0 | I13: =E13*H13 -> 0 | J13: 0 | K13: =E13*J13 -> 0 | AA13: 1 | AB13: 1 | AC13: 1 | AZ13: 1 | BA13: =IF(AZ13=1,G13,0) -> 0 | BB13: =IF(AZ13=2,G13,0) -> 0 | BC13: =IF(AZ13=3,G13,0) -> 0 | BD13: =IF(AZ13=4,G13,0) -> 0 | BE13: =IF(AZ13=5,G13,0) -> 0 | CA13: 1 | CB13: 1
C14: podlaha
A15: 5 | B15: 162201203R00 | C15: Vodorovné přemíst.výkopku, kolečko hor.1-4, do 10m | D15: m3 | E15: 52.7 | G15: =E15*F15 -> 0 | H15: 0 | I15: =E15*H15 -> 0 | J15: 0 | K15: =E15*J15 -> 0 | AA15: 1 | AB15: 1 | AC15: 1 | AZ15: 1 | BA15: =IF(AZ15=1,G15,0) -> 0 | BB15: =IF(AZ15=2,G15,0) -> 0 | BC15: =IF(AZ15=3,G15,0) -> 0 | BD15: =IF(AZ15=4,G15,0) -> 0 | BE15: =IF(AZ15=5,G15,0) -> 0 | CA15: 1 | CB15: 1
C16: zemina pro zásyp tam a zpět: | E16: 0
C17: vnitřní výkopek: | E17: 0
C18: podlaha
A19: 6 | B19: 162701105R00 | C19: Vodorovné přemístění výkopku z hor.1-4 do 10000 m | D19: m3 | E19: 50 | G19: =E19*F19 -> 0 | H19: 0 | I19: =E19*H19 -> 0 | J19: 0 | K19: =E19*J19 -> 0 | AA19: 1 | AB19: 1 | AC19: 1 | AZ19: 1 | BA19: =IF(AZ19=1,G19,0) -> 0 | BB19: =IF(AZ19=2,G19,0) -> 0 | BC19: =IF(AZ19=3,G19,0) -> 0 | BD19: =IF(AZ19=4,G19,0) -> 0 | BE19: =IF(AZ19=5,G19,0) -> 0 | CA19: 1 | CB19: 1
C20: přebytečná zemina: | E20: 0
C21: vnitřní výkopek: | E21: 0
A22: 7 | B22: 162701109R00 | C22: Příplatek k vod. přemístění hor.1-4 za další 1 km | D22: m3 | E22: 500 | G22: =E22*F22 -> 0 | H22: 0 | I22: =E22*H22 -> 0 | J22: 0 | K22: =E22*J22 -> 0 | AA22: 1 | AB22: 1 | AC22: 1 | AZ22: 1 | BA22: =IF(AZ22=1,G22,0) -> 0 | BB22: =IF(AZ22=2,G22,0) -> 0 | BC22: =IF(AZ22=3,G22,0) -> 0 | BD22: =IF(AZ22=4,G22,0) -> 0 | BE22: =IF(AZ22=5,G22,0) -> 0 | CA22: 1 | CB22: 1
A23: 8 | B23: 167101101R00 | C23: Nakládání výkopku z hor.1-4 v množství do 100 m3 | D23: m3 | E23: 17.04 | G23: 0 | H23: 0 | I23: 0 | J23: 0 | K23: 0 | AA23: 1 | AB23: 1 | AC23: 1 | AZ23: 1 | BA23: 0 | BB23: 0 | BC23: 0 | BD23: 0 | BE23: 0 | CA23: 1 | CB23: 1
A24: 9 | B24: 171201201R00 | C24: Uložení sypaniny na skl.-modelace na výšku přes 2m | D24: m3 | E24: 50 | G24: 0 | H24: 0 | I24: 0 | J24: 0 | K24: 0 | AA24: 1 | AB24: 1 | AC24: 1 | AZ24: 1 | BA24: 0 | BB24: 0 | BC24: 0 | BD24: 0 | BE24: 0 | CA24: 1 | CB24: 1
A25: 10 | B25: 174101101R00 | C25: Zásyp jam, rýh, šachet se zhutněním | D25: m3 | E25: 23.04 | G25: 0 | H25: 0 | I25: 0 | J25: 0 | K25: 0 | AA25: 1 | AB25: 1 | AC25: 1 | AZ25: 1 | BA25: 0 | BB25: 0 | BC25: 0 | BD25: 0 | BE25: 0 | CA25: 1 | CB25: 1
A26: 11 | B26: 199000002R00 | C26: Poplatek za skládku horniny 1- 4 | D26: m3 | E26: 50 | G26: 0 | H26: 0 | I26: 0 | J26: 0 | K26: 0 | AA26: 1 | AB26: 1 | AC26: 1 | AZ26: 1 | BA26: 0 | BB26: 0 | BC26: 0 | BD26: 0 | BE26: 0 | CA26: 1 | CB26: 1
A27: 12 | B27: 58337345 | C27: Štěrkopísek frakce 0-32 C | D27: T | E27: 6.0441 | G27: 0 | H27: 1 | I27: 6.0441 | K27: 0 | AA27: 3 | AB27: 1 | AC27: 58337345 | AZ27: 1 | BA27: 0 | BB27: 0 | BC27: 0 | BD27: 0 | BE27: 0 | CA27: 3 | CB27: 1
B28: Celkem za | C28: 1 Zemní práce | G28: =SUM(G7:G27) -> 0 | I28: =SUM(I7:I27) -> 6.0441 | K28: =SUM(K7:K27) -> 0 | BA28: =SUM(BA7:BA27) -> 0 | BB28: =SUM(BB7:BB27) -> 0 | BC28: =SUM(BC7:BC27) -> 0 | BD28: =SUM(BD7:BD27) -> 0 | BE28: =SUM(BE7:BE27) -> 0
A29: Díl: | B29: 2 | C29: Základy a zvláštní zakládání
A30: 13 | B30: 212792112R00 | C30: Montáž trativodů z flexibilních trubek, lože | D30: m | E30: 34 | G30: =E30*F30 -> 0 | H30: 0.22107 | I30: =E30*H30 -> 7.51638 | J30: 0 | K30: =E30*J30 -> 0 | AA30: 1 | AB30: 1 | AC30: 1 | AZ30: 1 | BA30: =IF(AZ30=1,G30,0) -> 0 | BB30: =IF(AZ30=2,G30,0) -> 0 | BC30: =IF(AZ30=3,G30,0) -> 0 | BD30: =IF(AZ30=4,G30,0) -> 0 | BE30: =IF(AZ30=5,G30,0) -> 0 | CA30: 1 | CB30: 1
A31: 14 | B31: 216904112R00 | C31: Očištění tlakovou vodou zdiva stěn a rubu kleneb | D31: m2 | E31: 38.4 | G31: =E31*F31 -> 0 | H31: 0.001 | I31: =E31*H31 -> 0.0384 | J31: 0 | K31: =E31*J31 -> 0 | AA31: 1 | AB31: 1 | AC31: 1 | AZ31: 1 | BA31: =IF(AZ31=1,G31,0) -> 0 | BB31: =IF(AZ31=2,G31,0) -> 0 | BC31: =IF(AZ31=3,G31,0) -> 0 | BD31: =IF(AZ31=4,G31,0) -> 0 | BE31: =IF(AZ31=5,G31,0) -> 0 | CA31: 1 | CB31: 1
A33: 15 | B33: 216904391R00 | C33: Přípl za ruční dočištění oc kartáči | D33: m2 | E33: 38.4 | G33: =E33*F33 -> 0 | H33: 0 | I33: =E33*H33 -> 0 | J33: 0 | K33: =E33*J33 -> 0 | AA33: 1 | AB33: 1 | AC33: 1 | AZ33: 1 | BA33: =IF(AZ33=1,G33,0) -> 0 | BB33: =IF(AZ33=2,G33,0) -> 0 | BC33: =IF(AZ33=3,G33,0) -> 0 | BD33: =IF(AZ33=4,G33,0) -> 0 | BE33: =IF(AZ33=5,G33,0) -> 0 | CA33: 1 | CB33: 1
A34: 16 | B34: 28611223 | C34: Trubka PVC-U drenážní flexibilní DN 100 mm | D34: m | E34: 37.4 | G34: =E34*F34 -> 0 | H34: 0.00048 | I34: =E34*H34 -> 0.017952 | K34: =E34*J34 -> 0 | AA34: 3 | AB34: 1 | AC34: 28611223 | AZ34: 1 | BA34: =IF(AZ34=1,G34,0) -> 0 | BB34: =IF(AZ34=2,G34,0) -> 0 | BC34: =IF(AZ34=3,G34,0) -> 0 | BD34: =IF(AZ34=4,G34,0) -> 0 | BE34: =IF(AZ34=5,G34,0) -> 0 | CA34: 3 | CB34: 1
B35: Celkem za | C35: 2 Základy a zvláštní zakládání | G35: =SUM(G29:G34) -> 0 | I35: =SUM(I29:I34) -> 7.572732 | K35: =SUM(K29:K34) -> 0 | BA35: =SUM(BA29:BA34) -> 0 | BB35: =SUM(BB29:BB34) -> 0 | BC35: =SUM(BC29:BC34) -> 0 | BD35: =SUM(BD29:BD34) -> 0 | BE35: =SUM(BE29:BE34) -> 0
A36: Díl: | B36: 3 | C36: Svislé a kompletní konstrukce
A37: 17 | B37: 388129110R00 | C37: Montáž dílců prefa. kanálů ze ŽB tvaru L do 0,25 t | D37: kus | E37: 64.64 | G37: =SUM(E37*F37) -> 0
A38: 18 | B38: 59385119 | C38: Tvarovka přímá | D38: kus | E38: 64.64 | G38: =E38*F38 -> 0
A39: 19 | B39: 59385120 | C39: Tvarovka rohová - roh vnější | D39: kus | E39: 1.01 | G39: =E39*F39 -> 0
A40: 20 | B40: 59385121 | C40: Tvarovka rohová - roh vnitřní | D40: kus | E40: 1.01 | G40: =E40*F40 -> 0
B41: Celkem za | C41: =CONCATENATE(B36," ",C36) -> 3 Svislé a kompletní konstrukce | G41: =SUM(G36:G40) -> 0
A42: Díl: | B42: 5 | C42: Komunikace
A43: 21 | B43: 564851111R00 | C43: Podklad ze štěrkodrti po zhutnění tloušťky 15 cm | D43: m2 | E43: 20.4 | G43: =E43*F43 -> 0 | H43: 0.27994 | I43: =E43*H43 -> 5.710776 | J43: 0 | K43: =E43*J43 -> 0 | AA43: 1 | AB43: 1 | AC43: 1 | AZ43: 1 | BA43: =IF(AZ43=1,G43,0) -> 0 | BB43: =IF(AZ43=2,G43,0) -> 0 | BC43: =IF(AZ43=3,G43,0) -> 0 | BD43: =IF(AZ43=4,G43,0) -> 0 | BE43: =IF(AZ43=5,G43,0) -> 0 | CA43: 1 | CB43: 1
B44: Celkem za | C44: 5 Komunikace | G44: =SUM(G42:G43) -> 0 | I44: =SUM(I42:I43) -> 5.710776 | K44: =SUM(K42:K43) -> 0 | BA44: =SUM(BA42:BA43) -> 0 | BB44: =SUM(BB42:BB43) -> 0 | BC44: =SUM(BC42:BC43) -> 0 | BD44: =SUM(BD42:BD43) -> 0 | BE44: =SUM(BE42:BE43) -> 0
A45: Díl: | B45: 61 | C45: Upravy povrchů vnitřní
A46: 22 | B46: 611421331R00 | C46: Infúzní clona. Rozteč vrtů cca 120mm, průměr 12-20mm, | D46: m2 | E46: 48 | G46: =E46*F46 -> 0
C47: ( např.Kiesol C)
A48: 23 | B48: 612 00 | C48: Hloubková impregnace a penetrace, naředit 1:1 s vodou | D48: m2 | E48: 14.4 | G48: =E48*F48 -> 0
C49: (např.Kiesol Standard)
A50: 24 | B50: 612 01 | C50: Síťový síranovzdorný podhoz-špric. Spotřeba 4kg/m2 | D50: m2 | E50: 14.4 | G50: =E50*F50 -> 0
C51: (např.Sulfatexschlämme)
A52: 25 | B52: 612 02 | C52: Vyrovnání podkladu, dotěsnění spár ve zdivu těsnicí maltou.Spotřeba 5 kg/m2. | D52: m2 | E52: 14.4 | G52: =E52*F52 -> 0
C53: (např. Dichtspachtel)
A54: 26 | B54: 612 03 | C54: 2. vrstva minerální sulfátostálé stěrky. Spotřeba 1,6 kg/m2 | D54: m2 | E54: 14.4 | G54: =E54*F54 -> 0
C55: (např.Sulfatexschlämme)
A56: 27 | B56: 612 04 | C56: Celoplošný sulfátostálý špric. Spotřeba 2kg/m2 | D56: m2 | E56: 48 | G56: =E56*F56 -> 0
C57: ( např. Vorspritzmörtel)
A58: 28 | B58: 612 05 | C58: Kap. aktivní omítkový systém Remmers, tl. 30 mm | D58: m2 | E58: 48 | G58: =E58*F58 -> 0
C59: (např. Grundputz) | G59: =E59*F59 -> 0
A60: 29 | B60: 612 06 | C60: Sanační štuk při spotřebě 2 kg/m2 | D60: m2 | E60: 48 | G60: =E60*F60 -> 0
C61: (např. Feinputz) | G61: =E61*F61 -> 0
B62: Celkem za | C62: =CONCATENATE(B45," ",C45) -> 61 Upravy povrchů vnitřní | G62: =SUM(G45:G61) -> 0
A63: Díl: | B63: 62 | C63: Úpravy povrchů vnější
A64: 30 | B64: 611421331R00 | C64: Infúzní clona. Rozteč vrtů cca 120mm, průměr 12-20mm, | D64: m2 | E64: 10 | G64: =E64*F64 -> 0
C65: ( např.Kiesol C)
A66: 31 | B66: 612 00 | C66: Hloubková impregnace a penetrace, naředit 1:1 s vodou | D66: m2 | E66: 10 | G66: =E66*F66 -> 0
C67: (např.Kiesol Standard)
A68: 32 | B68: 612 05 | C68: Kapilárně aktivní omítkový systém | D68: m2 | E68: 10 | G68: =E68*F68 -> 0
C69: (např.Remmers, tl. 30 mm Grundputz) | G69: =E69*F69 -> 0
A70: 33 | B70: 612 03 | C70: Hybridní izolační stěrka. Spotřeba 5,5 kg/m2/ 2 vrstvy | D70: m2 | E70: 10 | G70: =E70*F70 -> 0
C71: ( např. Multibaudicht 2K)
A72: 34 | B72: 627452101R00 | C72: Spárování maltou MCs zapuštěné rovné, zdí z kamene | D72: m2 | E72: 34 | G72: =E72*F72 -> 0
B73: Celkem za | C73: 62 Úpravy povrchů vnější | G73: =SUM(G63:G72) -> 0
A74: Díl: | B74: 63 | C74: Podlahy a podlahové konstrukce | H74: 0.02214 | I74: =E72*H74 -> 0.75276 | J74: 0 | K74: =E72*J74 -> 0 | AA74: 1 | AB74: 1 | AC74: 1 | AZ74: 1 | BA74: =IF(AZ74=1,G72,0) -> 0 | BB74: =IF(AZ74=2,G72,0) -> 0 | BC74: =IF(AZ74=3,G72,0) -> 0 | BD74: =IF(AZ74=4,G72,0) -> 0 | BE74: =IF(AZ74=5,G72,0) -> 0 | CA74: 1 | CB74: 1
A75: 35 | B75: 631312611R00 | C75: Mazanina betonová tl. 5 - 8 cm C 16/20 | D75: m3 | E75: 6.36 | G75: =E75*F75 -> 0 | I75: =SUM(I63:I74) -> 0.75276 | K75: =SUM(K63:K74) -> 0 | BA75: =SUM(BA63:BA74) -> 0 | BB75: =SUM(BB63:BB74) -> 0 | BC75: =SUM(BC63:BC74) -> 0 | BD75: =SUM(BD63:BD74) -> 0 | BE75: =SUM(BE63:BE74) -> 0
C76: 106*0,06 | E76: 6.36
A77: 36 | B77: 631319171R00 | C77: Příplatek za stržení povrchu mazaniny tl. 8 cm | D77: m3 | E77: 3.5625 | G77: =E77*F77 -> 0 | H77: 2.525 | I77: =E75*H77 -> 16.059 | J77: 0 | K77: =E75*J77 -> 0 | AA77: 1 | AB77: 1 | AC77: 1 | AZ77: 1 | BA77: =IF(AZ77=1,G75,0) -> 0 | BB77: =IF(AZ77=2,G75,0) -> 0 | BC77: =IF(AZ77=3,G75,0) -> 0 | BD77: =IF(AZ77=4,G75,0) -> 0 | BE77: =IF(AZ77=5,G75,0) -> 0 | CA77: 1 | CB77: 1
A78: 37 | B78: 631362021R00 | C78: Výztuž mazanin svařovanou sítí z drátů Kari | D78: t | E78: 0.38 | G78: =E78*F78 -> 0
C79: 106*0,003*1,2 | E79: 0.38 | H79: 0 | I79: =E77*H79 -> 0 | J79: 0 | K79: =E77*J79 -> 0 | AA79: 1 | AB79: 1 | AC79: 1 | AZ79: 1 | BA79: =IF(AZ79=1,G77,0) -> 0 | BB79: =IF(AZ79=2,G77,0) -> 0 | BC79: =IF(AZ79=3,G77,0) -> 0 | BD79: =IF(AZ79=4,G77,0) -> 0 | BE79: =IF(AZ79=5,G77,0) -> 0 | CA79: 1 | CB79: 1
A80: 38 | B80: 632921913R00 | C80: Dlažba z dlaždic cihelných 300x300 -20 mm | D80: m2 | E80: 116 | G80: =E80*F80 -> 0 | H80: 1.06625 | I80: =E78*H80 -> 0.405175 | J80: 0 | K80: =E78*J80 -> 0 | AA80: 1 | AB80: 1 | AC80: 1 | AZ80: 1 | BA80: =IF(AZ80=1,G78,0) -> 0 | BB80: =IF(AZ80=2,G78,0) -> 0 | BC80: =IF(AZ80=3,G78,0) -> 0 | BD80: =IF(AZ80=4,G78,0) -> 0 | BE80: =IF(AZ80=5,G78,0) -> 0 | CA80: 1 | CB80: 1
E81: 116
A82: 39 | B82: 631340010RAA | C82: Odvětraná podlaha z prvků Desan,zatížení 600 kg/m2 vč. betonu C 16/20 a výztuže 5 mm | D82: m2 | E82: 116 | G82: =E82*F82 -> 0 | H82: 0.27827 | I82: =E80*H82 -> 32.27932 | J82: 0 | K82: =E80*J82 -> 0 | AA82: 1 | AB82: 1 | AC82: 1 | AZ82: 1 | BA82: =IF(AZ82=1,G80,0) -> 0 | BB82: =IF(AZ82=2,G80,0) -> 0 | BC82: =IF(AZ82=3,G80,0) -> 0 | BD82: =IF(AZ82=4,G80,0) -> 0 | BE82: =IF(AZ82=5,G80,0) -> 0 | CA82: 1 | CB82: 1
E83: 116
A84: 40 | B84: 5924626090 | C84: zpětné zadláždění | D84: m2 | E84: 44 | G84: =E84*F84 -> 0 | H84: 0.19716 | I84: =E82*H84 -> 22.87056 | J84: 0 | K84: =E82*J84 -> 0 | AA84: 2 | AB84: 1 | AC84: 1 | AZ84: 1 | BA84: =IF(AZ84=1,G82,0) -> 0 | BB84: =IF(AZ84=2,G82,0) -> 0 | BC84: =IF(AZ84=3,G82,0) -> 0 | BD84: =IF(AZ84=4,G82,0) -> 0 | BE84: =IF(AZ84=5,G82,0) -> 0 | CA84: 2 | CB84: 1
C85: 32,7600*1,1 | E85: 44
B86: Celkem za | C86: 63 Podlahy a podlahové konstrukce | G86: =SUM(G74:G85) -> 0 | H86: 0.0897 | I86: =E84*H86 -> 3.9468 | K86: =E84*J86 -> 0 | AA86: 3 | AB86: 1 | AC86: 5924626090 | AZ86: 1 | BA86: =IF(AZ86=1,G84,0) -> 0 | BB86: =IF(AZ86=2,G84,0) -> 0 | BC86: =IF(AZ86=3,G84,0) -> 0 | BD86: =IF(AZ86=4,G84,0) -> 0 | BE86: =IF(AZ86=5,G84,0) -> 0 | CA86: 3 | CB86: 1
A87: Díl: | B87: 8 | C87: Trubní vedení
A88: 41 | B88: 899661311R00 | C88: Zřízení filtračního obalu dren.trubek DN do 130 mm | D88: m | E88: 34 | G88: =E88*F88 -> 0 | I88: =SUM(I76:I87) -> 75.560855 | K88: =SUM(K76:K87) -> 0 | BA88: =SUM(BA76:BA87) -> 0 | BB88: =SUM(BB76:BB87) -> 0 | BC88: =SUM(BC76:BC87) -> 0 | BD88: =SUM(BD76:BD87) -> 0 | BE88: =SUM(BE76:BE87) -> 0
A89: 42 | B89: 69366055 | C89: GEOFILTEX 63 100% PP 63/30 300 g/m2 šíře do 8,8m | D89: m2 | E89: 17.62 | G89: =E89*F89 -> 0
H90: 2e-05 | I90: =E88*H90 -> 0.00068 | J90: 0 | K90: =E88*J90 -> 0 | AA90: 1 | AB90: 1 | AC90: 1 | AZ90: 1 | BA90: =IF(AZ90=1,G88,0) -> 0 | BB90: =IF(AZ90=2,G88,0) -> 0 | BC90: =IF(AZ90=3,G88,0) -> 0 | BD90: =IF(AZ90=4,G88,0) -> 0 | BE90: =IF(AZ90=5,G88,0) -> 0 | CA90: 1 | CB90: 1
B91: Celkem za | C91: 8 Trubní vedení | G91: =SUM(G87:G90) -> 0 | H91: 0.0003 | I91: =E89*H91 -> 0.005286 | K91: =E89*J91 -> 0 | AA91: 3 | AB91: 1 | AC91: 69366055 | AZ91: 1 | BA91: =IF(AZ91=1,G89,0) -> 0 | BB91: =IF(AZ91=2,G89,0) -> 0 | BC91: =IF(AZ91=3,G89,0) -> 0 | BD91: =IF(AZ91=4,G89,0) -> 0 | BE91: =IF(AZ91=5,G89,0) -> 0 | CA91: 3 | CB91: 1
A92: Díl: | B92: 96 | C92: Bourání konstrukcí
A93: 43 | B93: 965042141R00 | C93: Bourání mazanin betonových tl. 10 cm, nad 4 m2 | D93: m3 | E93: 5.9375 | G93: =E93*F93 -> 0 | I93: =SUM(I89:I92) -> 0.005966 | K93: =SUM(K89:K92) -> 0 | BA93: =SUM(BA89:BA92) -> 0 | BB93: =SUM(BB89:BB92) -> 0 | BC93: =SUM(BC89:BC92) -> 0 | BD93: =SUM(BD89:BD92) -> 0 | BE93: =SUM(BE89:BE92) -> 0
A94: 44 | B94: 965081713R00 | C94: Bourání dlaždic keramických tl. 1 cm, nad 1 m2 | D94: m2 | E94: 12 | G94: =E94*F94 -> 0
B95: Celkem za | C95: 96 Bourání konstrukcí | G95: =SUM(G92:G94) -> 0 | H95: 0 | I95: =E93*H95 -> 0 | J95: -2.2 | K95: =E93*J95 -> -13.0625 | AA95: 1 | AB95: 1 | AC95: 1 | AZ95: 1 | BA95: =IF(AZ95=1,G93,0) -> 0 | BB95: =IF(AZ95=2,G93,0) -> 0 | BC95: =IF(AZ95=3,G93,0) -> 0 | BD95: =IF(AZ95=4,G93,0) -> 0 | BE95: =IF(AZ95=5,G93,0) -> 0 | CA95: 1 | CB95: 1
A96: Díl: | B96: 97 | C96: Prorážení otvorů | H96: 0 | I96: =E94*H96 -> 0 | J96: -0.02 | K96: =E94*J96 -> -0.24 | AA96: 1 | AB96: 1 | AC96: 1 | AZ96: 1 | BA96: =IF(AZ96=1,G94,0) -> 0 | BB96: =IF(AZ96=2,G94,0) -> 0 | BC96: =IF(AZ96=3,G94,0) -> 0 | BD96: =IF(AZ96=4,G94,0) -> 0 | BE96: =IF(AZ96=5,G94,0) -> 0 | CA96: 1 | CB96: 1
A97: 45 | B97: 970031160R00 | C97: Vrtání jádrové do zdiva cihelného do D 160 mm | D97: m | E97: 1 | G97: =E97*F97 -> 0 | I97: =SUM(I94:I96) -> 0 | K97: =SUM(K94:K96) -> -13.3025 | BA97: =SUM(BA94:BA96) -> 0 | BB97: =SUM(BB94:BB96) -> 0 | BC97: =SUM(BC94:BC96) -> 0 | BD97: =SUM(BD94:BD96) -> 0 | BE97: =SUM(BE94:BE96) -> 0
A98: 46 | B98: 978023251R00 | C98: Vysekání a úprava spár zdiva kamenného režného | D98: m2 | E98: 40.8 | G98: =E98*F98 -> 0
B99: Celkem za | C99: 97 Prorážení otvorů | G99: =SUM(G96:G98) -> 0 | H99: 0 | I99: =E97*H99 -> 0 | J99: -0.00214 | K99: =E97*J99 -> -0.00214 | AA99: 1 | AB99: 1 | AC99: 1 | AZ99: 1 | BA99: =IF(AZ99=1,G97,0) -> 0 | BB99: =IF(AZ99=2,G97,0) -> 0 | BC99: =IF(AZ99=3,G97,0) -> 0 | BD99: =IF(AZ99=4,G97,0) -> 0 | BE99: =IF(AZ99=5,G97,0) -> 0 | CA99: 1 | CB99: 1
A100: Díl: | B100: 99 | C100: Staveništní přesun hmot | H100: 0 | I100: =E98*H100 -> 0 | J100: -0.014 | K100: =E98*J100 -> -0.5712 | AA100: 1 | AB100: 1 | AC100: 1 | AZ100: 1 | BA100: =IF(AZ100=1,G98,0) -> 0 | BB100: =IF(AZ100=2,G98,0) -> 0 | BC100: =IF(AZ100=3,G98,0) -> 0 | BD100: =IF(AZ100=4,G98,0) -> 0 | BE100: =IF(AZ100=5,G98,0) -> 0 | CA100: 1 | CB100: 1
A101: 47 | B101: 999281105R00 | C101: Přesun hmot pro opravy a údržbu do výšky 6 m | D101: t | E101: 49.6952882 | G101: =E101*F101 -> 0 | I101: =SUM(I98:I100) -> 0 | K101: =SUM(K98:K100) -> -0.57334 | BA101: =SUM(BA98:BA100) -> 0 | BB101: =SUM(BB98:BB100) -> 0 | BC101: =SUM(BC98:BC100) -> 0 | BD101: =SUM(BD98:BD100) -> 0 | BE101: =SUM(BE98:BE100) -> 0
B102: Celkem za | C102: 99 Staveništní přesun hmot | G102: =SUM(G100:G101) -> 0
A103: Díl: | B103: 711 | C103: Izolace proti vodě | H103: 0 | I103: =E101*H103 -> 0 | K103: =E101*J103 -> 0 | AA103: 7 | AB103: 1 | AC103: 2 | AZ103: 1 | BA103: =IF(AZ103=1,G101,0) -> 0 | BB103: =IF(AZ103=2,G101,0) -> 0 | BC103: =IF(AZ103=3,G101,0) -> 0 | BD103: =IF(AZ103=4,G101,0) -> 0 | BE103: =IF(AZ103=5,G101,0) -> 0 | CA103: 7 | CB103: 1
A104: 48 | B104: 711472053R00 | C104: Izol pr vodě S fólie z PE pol volně | D104: m2 | E104: 28.8 | G104: =E104*F104 -> 0 | I104: =SUM(I102:I103) -> 0 | K104: =SUM(K102:K103) -> 0 | BA104: =SUM(BA102:BA103) -> 0 | BB104: =SUM(BB102:BB103) -> 0 | BC104: =SUM(BC102:BC103) -> 0 | BD104: =SUM(BD102:BD103) -> 0 | BE104: =SUM(BE102:BE103) -> 0
C105: 24*1,2 | E105: 28.8
A106: 49 | B106: 283220893 | C106: Fólie hydroizolační PVC tl. 0,8 mm | D106: m2 | E106: 34.56 | G106: =E106*F106 -> 0 | H106: 0.00017 | I106: =E104*H106 -> 0.004896 | J106: 0 | K106: =E104*J106 -> 0 | AA106: 1 | AB106: 7 | AC106: 7 | AZ106: 2 | BA106: =IF(AZ106=1,G104,0) -> 0 | BB106: =IF(AZ106=2,G104,0) -> 0 | BC106: =IF(AZ106=3,G104,0) -> 0 | BD106: =IF(AZ106=4,G104,0) -> 0 | BE106: =IF(AZ106=5,G104,0) -> 0 | CA106: 1 | CB106: 7
C107: 28,8*1,2 | E107: 34.56
A108: 50 | B108: 998711201R00 | C108: Přesun hmot pro izolace proti vodě, výšky do 6 m | D108: % | E108: 68.71 | G108: =E108*F108 -> 0 | H108: 0.00102 | I108: =E106*H108 -> 0.0352512 | K108: =E106*J108 -> 0 | AA108: 3 | AB108: 0 | AC108: 283220893 | AZ108: 2 | BA108: =IF(AZ108=1,G106,0) -> 0 | BB108: =IF(AZ108=2,G106,0) -> 0 | BC108: =IF(AZ108=3,G106,0) -> 0 | BD108: =IF(AZ108=4,G106,0) -> 0 | BE108: =IF(AZ108=5,G106,0) -> 0 | CA108: 3 | CB108: 0
B109: Celkem za | C109: 711 Izolace proti vodě | G109: =SUM(G103:G108) -> 0
A110: Díl: | B110: 713 | C110: Izolace tepelné
A111: 51 | B111: 713121111R00 | C111: Izolace tepelná podlah na sucho, jednovrstvá | D111: m2 | E111: 106 | G111: =E111*F111 -> 0
G112: 0
A113: 52 | B113: 713191100R00 | C113: Položení separační fólie | D113: m2 | E113: 106 | G113: 0
G114: 0
A115: 53 | B115: 283754903 | C115: Deska polystyrenová XPS tl. 60 mm | D115: m2 | E115: 116.6 | G115: 0
G116: 0
A117: 54 | B117: 69366055 | C117: Dodávka separační geotextilie | D117: m2 | E117: 116.6 | G117: 0
G118: 0
A119: 55 | B119: 998713202R00 | C119: Přesun hmot pro izolace tepelné, výšky do 12 m | D119: % | E119: 360.7 | G119: 0
B120: Celkem za | C120: 713 Izolace tepelné | G120: =SUM(G111:G119) -> 0
A121: Díl: | B121: 730 | C121: Ústřední vytápění | H121: 0 | I121: =E108*H121 -> 0 | K121: =E108*J121 -> 0 | AA121: 7 | AB121: 1002 | AC121: 5 | AZ121: 2 | BA121: =IF(AZ121=1,G108,0) -> 0 | BB121: =IF(AZ121=2,G108,0) -> 0 | BC121: =IF(AZ121=3,G108,0) -> 0 | BD121: =IF(AZ121=4,G108,0) -> 0 | BE121: =IF(AZ121=5,G108,0) -> 0 | CA121: 7 | CB121: 1002
A122: 56 | B122: 730101 | C122: Zařízení pro vytápění | D122: kpl | E122: 1 | G122: =E122*F122 -> 0 | I122: =SUM(I105:I121) -> 0.0401472 | K122: =SUM(K105:K121) -> 0 | BA122: =SUM(BA105:BA121) -> 0 | BB122: =SUM(BB105:BB121) -> 0 | BC122: =SUM(BC105:BC121) -> 0 | BD122: =SUM(BD105:BD121) -> 0 | BE122: =SUM(BE105:BE121) -> 0
A123: 57 | B123: 730901 | C123: Stavební přípomoci | D123: % | E123: 5 | G123: =E123*F123 -> 0
B124: Celkem za | C124: =CONCATENATE(B121," ",C121) -> 730 Ústřední vytápění | G124: =SUM(G121:G123) -> 0
A125: Díl: | B125: 762 | C125: Konstrukce tesařské
A126: 58 | B126: 762811210R00 | C126: Montáž nástavce a záklopu v krovu, vrchní na sraz, hrubá prkna | D126: m2 | E126: 8 | G126: =E126*F126 -> 0
A127: 59 | B127: 762895000R00 | C127: Spojovací prostředky pro montáž stropů | D127: m3 | E127: 0.0834 | G127: =E127*F127 -> 0
C128: nad klenbou | E128: 0
A129: 60 | B129: 762 00 | C129: Zhotovení a osazení poklopu | D129: kpl | E129: 1 | G129: =E129*F129 -> 0
A130: 61 | B130: 60623216 | C130: Překližka vodovzdorná smrk tl. 15 mm jak. C/C | D130: m2 | E130: 2 | G130: =E130*F130 -> 0
A131: 62 | B131: 998762202R00 | C131: Přesun hmot pro tesařské konstrukce, výšky do 12 m | D131: % | E131: 113.25 | G131: =E131*F131 -> 0
B132: Celkem za | C132: =CONCATENATE(B125," ",C125) -> 762 Konstrukce tesařské | G132: =SUM(G125:G131) -> 0
A133: Díl: | B133: 764 | C133: Konstrukce klempířské
A134: 63 | B134: 764 00 | C134: Úprava dešť.svodu-lapač.nečistot,atyp.ventil.dílec - dle PD | D134: kpl | E134: 2 | G134: =E134*F134 -> 0
A135: 64 | B135: 764 01 | C135: dodávka a montáž okapniček pod okna kaple | D135: kpl | E135: 7 | G135: 0
A136: 65 | B136: 764 02 | C136: rošt nasávací atyp 800x600. Včetně redukční clony 300x200 | D136: kpl | E136: 3 | G136: 0
A137: 66 | B137: 764 03 | C137: rošt nasávací atyp 800x600. Včetně redukční clony 300x200 | D137: kpl | E137: 1 | G137: 0
A138: 67 | B138: 764 04 | C138: Plastové čtařhranné potrubí 90x220 s příslušenstvím | D138: bm | E138: 26 | G138: 0
A139: 68 | B139: 998764201R00 | C139: Přesun hmot pro klempířské konstr., výšky do 6 m | D139: % | E139: 883.9 | G139: 0
B140: Celkem za | C140: 764 Konstrukce klempířské | G140: =SUM(G133:G139) -> 0
A141: Díl: | B141: 766 | C141: Konstrukce truhlářské
A142: 69 | B142: O 1 | C142: Restaurátorská repase okenní výplně | D142: kpl | E142: 2 | G142: =E142*F142 -> 0
A143: 70 | B143: O 1a | C143: Repase okenní výplně vnitřní | D143: kpl | E143: 2 | G143: 0
A144: 71 | B144: D 1 | C144: dodávka a montáž dvoukřídlých dveří s prosklením a mříží | D144: kpl | E144: 1 | G144: 0
A145: 72 | B145: D 2 | C145: dodávka a montáž jednokřídlých dveří | D145: kpl | E145: 1 | G145: 0
A146: 73 | B146: D 3 | C146: dodávka a montáž jednokřídlých dveří | D146: kpl | E146: 1 | G146: 0
A147: 74 | B147: 998766203R00 | C147: Přesun hmot pro truhlářské konstr., výšky do 24 m | D147: % | E147: 5391.92 | G147: 0
B148: Celkem za | C148: =CONCATENATE(B141," ",C141) -> 766 Konstrukce truhlářské | G148: =SUM(G141:G147) -> 0 | H148: 0.00021 | I148: =E154*H148 -> 0.024486 | J148: 0 | K148: =E154*J148 -> 0 | AA148: 1 | AB148: 7 | AC148: 7 | AZ148: 2 | BA148: =IF(AZ148=1,G154,0) -> 0 | BB148: =IF(AZ148=2,G154,0) -> 0 | BC148: =IF(AZ148=3,G154,0) -> 0 | BD148: =IF(AZ148=4,G154,0) -> 0 | BE148: =IF(AZ148=5,G154,0) -> 0 | CA148: 1 | CB148: 7
A149: Díl: | B149: 767 | C149: Konstrukce zámečnické
A150: 75 | B150: 01/Z | C150: Rampa zasouvací skládací RZS240/143 | D150: kpl | E150: 1 | G150: =E150*F150 -> 0 | AA150: 12 | AB150: 0 | AC150: 69 | AZ150: 2 | BA150: 0 | BB150: 250000 | BC150: 0 | BD150: 0 | BE150: 0 | CA150: 12 | CB150: 0 | CZ150: 0
A151: 76 | B151: 998767202R00 | C151: Přesun hmot pro zámečnické konstr., výšky do 12 m | D151: % | E151: 251 | G151: 0 | AA151: 7 | AB151: 1002 | AC151: 5 | AZ151: 2 | BA151: 0 | BB151: 9391.7 | BC151: 0 | BD151: 0 | BE151: 0 | CA151: 7 | CB151: 1002 | CZ151: 0
B152: Celkem za | C152: 767 Konstrukce zámečnické | G152: =SUM(G150:G151) -> 0 | BA152: 0 | BB152: 503691.7 | BC152: 0 | BD152: 0 | BE152: 0
A153: Díl: | B153: 771 | C153: Podlahy z dlaždic a obklady | H153: 0.00475 | I153: =E155*H153 -> 0.55385 | J153: 0 | K153: =E155*J153 -> 0 | AA153: 1 | AB153: 7 | AC153: 7 | AZ153: 2 | BA153: =IF(AZ153=1,G155,0) -> 0 | BB153: =IF(AZ153=2,G155,0) -> 0 | BC153: =IF(AZ153=3,G155,0) -> 0 | BD153: =IF(AZ153=4,G155,0) -> 0 | BE153: =IF(AZ153=5,G155,0) -> 0 | CA153: 1 | CB153: 7
A154: 77 | B154: 771101210R00 | C154: Penetrace podkladu pod dlažby | D154: m2 | E154: 116.6 | G154: =E154*F154 -> 0 | H154: 0.0192 | I154: =E156*H154 -> 2.23872 | K154: =E156*J154 -> 0 | AA154: 3 | AB154: 7 | AC154: 597642030 | AZ154: 2 | BA154: =IF(AZ154=1,G156,0) -> 0 | BB154: =IF(AZ154=2,G156,0) -> 0 | BC154: =IF(AZ154=3,G156,0) -> 0 | BD154: =IF(AZ154=4,G156,0) -> 0 | BE154: =IF(AZ154=5,G156,0) -> 0 | CA154: 3 | CB154: 7
A155: 78 | B155: 771575109R00 | C155: Montáž podlah keram.,hladké, tmel, 20x20 cm | D155: m2 | E155: 116.6 | G155: =E155*F155 -> 0 | H155: 0 | I155: =E157*H155 -> 0 | K155: =E157*J155 -> 0 | AA155: 7 | AB155: 1002 | AC155: 5 | AZ155: 2 | BA155: =IF(AZ155=1,G157,0) -> 0 | BB155: =IF(AZ155=2,G157,0) -> 0 | BC155: =IF(AZ155=3,G157,0) -> 0 | BD155: =IF(AZ155=4,G157,0) -> 0 | BE155: =IF(AZ155=5,G157,0) -> 0 | CA155: 7 | CB155: 1002
A156: 79 | B156: 597642030 | C156: Dlažba matná 300x300x9 mm dodávka | D156: m2 | E156: 116.6 | G156: =E156*F156 -> 0 | I156: =SUM(I147:I155) -> 2.817056 | K156: =SUM(K147:K155) -> 0 | BA156: =SUM(BA147:BA155) -> 0 | BB156: =SUM(BB147:BB155) -> 763083.4 | BC156: =SUM(BC147:BC155) -> 0 | BD156: =SUM(BD147:BD155) -> 0 | BE156: =SUM(BE147:BE155) -> 0
A157: 80 | B157: 998771201R00 | C157: Přesun hmot pro podlahy z dlaždic, výšky do 6 m | D157: % | E157: 887.63 | G157: =E157*F157 -> 0
B158: Celkem za | C158: 771 Podlahy z dlaždic a obklady | G158: =SUM(G153:G157) -> 0
A159: Díl: | B159: 784 | C159: Malby
A160: 81 | B160: 784191101R00 | C160: Vnitřní sanační difúzní barva | D160: m2 | E160: 228 | G160: =E160*F160 -> 0
C161: ( např.Sanierputzfarbe)
B162: Celkem za | C162: =CONCATENATE(B159," ",C159) -> 784 Malby | G162: =SUM(G159:G161) -> 0 | H162: Díl: | I162: M21 | J162: Elektromontáže
A163: Díl: | B163: Rest | C163: Restaurátorské práce | H163: 28 | I163: P 021 | J163: Stavební přípomoci | K163: % | V163: 8 | W163: 0 | X163: 3 | AU163: 1 | AV163: =IF(AU163=1,G181,0) -> 0 | AW163: =IF(AU163=2,G181,0) -> 0 | AX163: =IF(AU163=3,G181,0) -> 0 | AY163: =IF(AU163=4,G181,0) -> 0 | AZ163: =IF(AU163=5,G181,0) -> 0 | BV163: 8 | BW163: 0
A164: 82 | B164: R 01 | C164: Odhalené omítkové plochy - provedení průzkumů | D164: kpl | E164: 1 | G164: =E164*F164 -> 0 | I164: Celkem za | J164: M21 Elektromontáže | V164: 8 | W164: 0 | X164: 3 | AU164: 1 | AV164: =IF(AU164=1,G182,0) -> 0 | AW164: =IF(AU164=2,G182,0) -> 0 | AX164: =IF(AU164=3,G182,0) -> 0 | AY164: =IF(AU164=4,G182,0) -> 0 | AZ164: =IF(AU164=5,G182,0) -> 0 | BV164: 8 | BW164: 0
A165: 83 | B165: R 02 | C165: Restaurátorská obnova malířské výzdoby | D165: kpl | E165: 1 | G165: =E165*F165 -> 0 | H165: Díl: | I165: M36 | J165: Montáže měřících a regulačních zařízení | V165: 8 | W165: 0 | X165: 3 | AU165: 1 | AV165: =IF(AU165=1,G184,0) -> 0 | AW165: =IF(AU165=2,G184,0) -> 0 | AX165: =IF(AU165=3,G184,0) -> 0 | AY165: =IF(AU165=4,G184,0) -> 0 | AZ165: =IF(AU165=5,G184,0) -> 0 | BV165: 8 | BW165: 0
B166: Celkem za | C166: =CONCATENATE(B163," ",C163) -> Rest Restaurátorské práce | G166: =SUM(G163:G165) -> 0 | H166: 72 | I166: 360 00 | J166: Provedení MaR viz samostatná část PD | K166: kpl | V166: 8 | W166: 0 | X166: 3 | AU166: 1 | AV166: =IF(AU166=1,G185,0) -> 0 | AW166: =IF(AU166=2,G185,0) -> 0 | AX166: =IF(AU166=3,G185,0) -> 0 | AY166: =IF(AU166=4,G185,0) -> 0 | AZ166: =IF(AU166=5,G185,0) -> 0 | BV166: 8 | BW166: 0
A167: Díl: | B167: M21 | C167: Elektromontáže
A168: 84 | B168: 210 | C168: Silnoproudá elektroinstalace - viz samostatná část projektové dokumentace | D168: kpl | E168: 1 | G168: =SUM(E168*F168) -> 0 | P168: 0 | Q168: 3 | AN168: 4 | AO168: 0 | AP168: 0 | AQ168: 0 | AR168: 0 | AS168: 0 | BO168: 12 | BP168: 0 | CN168: 0
A169: 85 | B169: P 210 | C169: Stavební přípomoci | D169: % | E169: 5 | G169: =E169*F169 -> 0
B170: Celkem za | C170: M21 Elektromontáže | G170: =SUM(G168:G169) -> 0
A171: Díl: | B171: M22 | C171: Montáž sdělovací a zabezp. techniky
A172: 86 | B172: 220 | C172: Slaboproudá elektroinstalace - viz samostatná část projektové dokumentace | E172: 0 | G172: =E172*F172 -> 0
A173: 87 | B173: 220 00 | C173: Provedení slaboproudé elektroinstalace - Ozvučení kaple | D173: kpl | E173: 1 | G173: =E173*F173 -> 0
A174: 88 | B174: P 220 | C174: Stavební přípomoci | D174: % | E174: 5 | G174: =E174*F174 -> 0
B175: Celkem za | C175: =CONCATENATE(B171," ",C171) -> M22 Montáž sdělovací a zabezp. techniky | G175: =SUM(G171:G174) -> 0
A176: Díl: | B176: M36 | C176: Montáže měřících a regulačních zařízení | I176: Celkem za | J176: =CONCATENATE(#REF!," ",#REF!) -> 
A177: 89 | B177: 360 00 | C177: Provedení MaR viz samostatná část PD | D177: kpl | E177: 1 | G177: =E177*F177 -> 0
A178: 90 | B178: P 036 | C178: Stavební přípomoci | D178: % | E178: 5 | G178: =E178*F178 -> 0
B179: Celkem za | C179: M36 Montáže měřících a regulačních zařízení | G179: =SUM(G177:G178) -> 0
A180: Díl: | B180: D96 | C180: Přesuny suti a vybouraných hmot
A181: 91 | B181: 979081111R00 | C181: Odvoz suti a vybour. hmot na skládku do 1 km | D181: t | E181: 26.32 | G181: =E181*F181 -> 0
A182: 92 | B182: 979081121R00 | C182: Příplatek k odvozu za každý další 1 km | D182: t | E182: 368.42 | G182: 0
A183: 93 | B183: 979082111R00 | C183: Vnitrostaveništní doprava suti do 10 m | D183: t | E183: 26.32 | G183: 0
A184: 94 | B184: 979082121R00 | C184: Příplatek k vnitrost. dopravě suti za dalších 5 m | D184: t | E184: 263.15 | G184: 0
A185: 95 | B185: 979087112R00 | C185: Nakládání suti na dopravní prostředky | D185: t | E185: 26.32 | G185: 0
A186: 96 | B186: 979093111R00 | C186: Uložení suti na skládku bez zhutnění | D186: t | E186: 26.32 | G186: 0
A187: 97 | B187: 979990001R00 | C187: Poplatek za skládku stavební suti | D187: t | E187: 26.32 | G187: 0
B188: Celkem za | C188: D96 Přesuny suti a vybouraných hmot | G188: =SUM(G180:G187) -> 0

Sheet 02 02 KL (2)
A1: POLOŽKOVÝ ROZPOČET
A2: Rozpočet | C2: 02 | D2: 2.etapa | F2: JKSO
A4: Objekt | F4: SKP
A5: 01 | C5: 2.etapa | F5: Měrná jednotka
A6: Stavba | F6: Počet jednotek | G6: 0
A7: Červ1811 | C7: Odvlhčení kaple a špitálku sv. Anny | F7: Náklady na m.j. | G7: =IF(G6=0,,ROUND((F30+F32)/G6,1)) -> 0
A8: Projektant | C8: Ing.Jan Červenák a Ing.Arch.Jan Čepelák | F8: Typ rozpočtu
A9: Zpracovatel projektu
A10: Objednatel | C10: Muzeum Vyškovska, p.o.
A11: Dodavatel | C11: bude určen výběrovým řízením | F11: Zakázkové číslo
A12: Rozpočtoval | F12: Počet listů
A13: ROZPOČTOVÉ NÁKLADY
A14: Základní rozpočtové náklady | D14: Ostatní rozpočtové náklady
B15: HSV celkem | C15: ='02 02 Rek (2)'!E19 -> 0 | D15: ='01 01 Rek'!A37 -> Ztížené výrobní podmínky | G15: ='02 02 Rek (2)'!I24 -> 0
A16: Z | B16: PSV celkem | C16: ='02 02 Rek (2)'!F19 -> 0 | D16: ='01 01 Rek'!A38 -> Oborová přirážka | G16: ='02 02 Rek (2)'!I25 -> 0
A17: R | B17: M práce celkem | D17: ='01 01 Rek'!A39 -> Přesun stavebních kapacit | G17: ='02 02 Rek (2)'!I26 -> 0
A18: N | B18: M dodávky celkem | C18: ='01 01 Rek'!G32 -> 0 | D18: ='01 01 Rek'!A40 -> Mimostaveništní doprava | G18: ='02 02 Rek (2)'!I27 -> 0
A19: ZRN celkem | C19: =SUM(C15:C18) -> 0 | D19: ='01 01 Rek'!A41 -> Zařízení staveniště | G19: ='02 02 Rek (2)'!I28 -> 0
D20: ='01 01 Rek'!A42 -> Provoz investora | G20: ='02 02 Rek (2)'!I29 -> 0
A21: HZS | C21: ='01 01 Rek'!I32 -> 0 | D21: ='01 01 Rek'!A43 -> Kompletační činnost (IČD) | G21: ='02 02 Rek (2)'!I30 -> 0
A22: ZRN+HZS | C22: =C19+C21 -> 0 | D22: Ostatní náklady neuvedené | G22: ='02 02 Rek (2)'!I31 -> 0
A23: ZRN+ost.náklady+HZS | C23: =C22+G23 -> 0 | D23: Ostatní náklady celkem | G23: =SUM(G15:G22) -> 0
A24: Vypracoval | D24: Za zhotovitele | F24: Za objednatele
A25: Jméno : | D25: Jméno : | F25: Jméno :
A26: Datum : | D26: Datum : | F26: Datum :
A28: Podpis : | D28: Podpis: | F28: Podpis:
A30: Základ pro DPH | C30: 21 | D30: % | F30: =C23-F32 -> 0
A31: DPH | C31: =C30 -> 21 | D31: % | F31: =ROUND(PRODUCT(F30,C31/100),0) -> 0
A32: Základ pro DPH | C32: 0 | D32: % | F32: 0
A33: DPH | C33: =C32 -> 0 | D33: % | F33: =ROUND(PRODUCT(F32,C33/100),0) -> 0
A34: CENA ZA OBJEKT CELKEM | F34: =ROUND(SUM(F30:F33),0) -> 0
A36: Poznámka :

Sheet 02 02 Rek (2)
A1: Stavba : | C1: Červ1811 Odvlhčení kaple a špitálku sv. Anny | G1: Rozpočet : | H1: 02
A2: Objekt : | C2: 02 2.etapa | G2: 2.etapa
A4: REKAPITULACE STAVEBNÍCH DÍLŮ
B6: Stavební díl | E6: HSV | F6: PSV | G6: Dodávka | H6: Montáž | I6: HZS
A7: ='01 01 Pol'!B7 -> 1 | B7: ='01 01 Pol'!C7 -> Zemní práce | E7: ='02 02 Pol (2)'!G26 -> 0 | F7: ='01 01 Pol'!BB28 -> 0 | G7: ='01 01 Pol'!BC28 -> 0 | H7: ='01 01 Pol'!BD28 -> 0 | I7: ='01 01 Pol'!BE28 -> 0
A8: ='01 01 Pol'!B29 -> 2 | B8: ='01 01 Pol'!C29 -> Základy a zvláštní zakládání | E8: ='02 02 Pol (2)'!G33 -> 0 | F8: ='01 01 Pol'!BB35 -> 0 | G8: ='01 01 Pol'!BC35 -> 0 | H8: ='01 01 Pol'!BD35 -> 0 | I8: ='01 01 Pol'!BE35 -> 0
A9: 3 | B9: Svislé a kompletní konstrukce | E9: ='02 02 Pol (2)'!G39 -> 0
A10: ='01 01 Pol'!B42 -> 5 | B10: ='01 01 Pol'!C42 -> Komunikace | E10: ='02 02 Pol (2)'!G42 -> 0 | F10: ='01 01 Pol'!BB44 -> 0 | G10: ='01 01 Pol'!BC44 -> 0 | H10: ='01 01 Pol'!BD44 -> 0 | I10: ='01 01 Pol'!BE44 -> 0
A11: ='01 01 Pol'!B63 -> 62 | B11: ='01 01 Pol'!C63 -> Úpravy povrchů vnější | E11: ='02 02 Pol (2)'!G53 -> 0 | F11: ='01 01 Pol'!BB75 -> 0 | G11: ='01 01 Pol'!BC75 -> 0 | H11: ='01 01 Pol'!BD75 -> 0 | I11: ='01 01 Pol'!BE75 -> 0
A12: ='01 01 Pol'!B87 -> 8 | B12: ='01 01 Pol'!C87 -> Trubní vedení | E12: ='02 02 Pol (2)'!G58 -> 0 | F12: ='01 01 Pol'!BB93 -> 0 | G12: ='01 01 Pol'!BC93 -> 0 | H12: ='01 01 Pol'!BD93 -> 0 | I12: ='01 01 Pol'!BE93 -> 0
A13: ='01 01 Pol'!B92 -> 96 | B13: ='01 01 Pol'!C92 -> Bourání konstrukcí | E13: ='02 02 Pol (2)'!G62 -> 0 | F13: ='01 01 Pol'!BB97 -> 0 | G13: ='01 01 Pol'!BC97 -> 0 | H13: ='01 01 Pol'!BD97 -> 0 | I13: ='01 01 Pol'!BE97 -> 0
A14: ='01 01 Pol'!B96 -> 97 | B14: ='01 01 Pol'!C96 -> Prorážení otvorů | E14: ='02 02 Pol (2)'!G66 -> 0 | F14: ='01 01 Pol'!BB101 -> 0 | G14: ='01 01 Pol'!BC101 -> 0 | H14: ='01 01 Pol'!BD101 -> 0 | I14: ='01 01 Pol'!BE101 -> 0
A15: ='01 01 Pol'!B103 -> 711 | B15: ='01 01 Pol'!C103 -> Izolace proti vodě | F15: ='02 02 Pol (2)'!G73 -> 0 | G15: ='01 01 Pol'!BC122 -> 0 | H15: ='01 01 Pol'!BD122 -> 0 | I15: ='01 01 Pol'!BE122 -> 0
A16: 764 | B16: konstrukce klempířské | F16: ='02 02 Pol (2)'!G78 -> 0 | G16: 0 | H16: 0 | I16: 0
A17: 784 | B17: Malby | F17: ='02 02 Pol (2)'!G82 -> 0
A18: D96 | B18: ='01 01 Pol'!C180 -> Přesuny suti a vybouraných hmot | E18: ='02 02 Pol (2)'!G91 -> 0 | F18: 0 | G18: 0 | H18: 0 | I18: 0
B19: CELKEM OBJEKT | E19: =SUM(E7:E18) -> 0 | F19: =SUM(F7:F18) -> 0 | G19: 0 | H19: =SUM(H7:H18) -> 0 | I19: 0
A22: VEDLEJŠÍ ROZPOČTOVÉ NÁKLADY
A23: Název VRN | E23: Kč | F23: % | G23: Základna | I23: Kč
A24: Ztížené výrobní podmínky | E24: 0 | F24: 2 | G24: =SUM(E19+F19+G19+H19+I19) -> 0 | I24: =E24+F24*G24/100 -> 0 | BA24: 2
A25: Oborová přirážka | E25: 0 | F25: 2 | I25: 0 | BA25: 2
A26: Přesun stavebních kapacit | E26: 0 | F26: 2 | I26: 0 | BA26: 2
A27: Mimostaveništní doprava | E27: 0 | F27: 5 | I27: 0 | BA27: 2
A28: Zařízení staveniště | E28: 0 | F28: 4.5 | I28: 0 | BA28: 2
A29: Provoz investora | E29: 0 | F29: 2 | I29: 0 | BA29: 2
A30: Kompletační činnost (IČD) | E30: 0 | F30: 2 | I30: 0 | BA30: 2
A31: Rezerva rozpočtu | E31: 0 | F31: 9 | I31: 0 | BA31: 2
B32: CELKEM VRN | H32: =SUM(I24:I31) -> 0

Sheet 02 02 Pol (2)
A1: Položkový rozpočet
A3: Stavba : | C3: Červ1811 Odvlhčení kaple a špitálku sv. Anny | E3: Rozpočet: | F3: 02
A4: Objekt : | C4: 02 2.etapa | E4: 2.etapa
A6: P.č. | B6: Číslo položky | C6: Název položky | D6: MJ | E6: množství | F6: cena / MJ | G6: celkem (Kč) | H6: Jednotková hmotnost | I6: Celková hmotnost | J6: Jednotková dem.hmot. | K6: Celková dem.hmot.
A7: Díl: | B7: 1 | C7: Zemní práce | O7: 1
A8: 1 | B8: 113106111R00 | C8: Rozebrání dlažeb z mozaiky | D8: m2 | E8: 11.3 | G8: =E8*F8 -> 0
A10: 2 | B10: 130001101R00 | C10: Příplatek za ztížené hloubení v blízkosti vedení | D10: m3 | E10: 10.8 | G10: =E10*F10 -> 0 | H10: 0 | I10: =E10*H10 -> 0 | J10: 0 | K10: =E10*J10 -> 0 | O10: 2 | AA10: 1 | AB10: 1 | AC10: 1 | AZ10: 1 | BA10: =IF(AZ10=1,G10,0) -> 0 | BB10: =IF(AZ10=2,G10,0) -> 0 | BC10: =IF(AZ10=3,G10,0) -> 0 | BD10: =IF(AZ10=4,G10,0) -> 0 | BE10: =IF(AZ10=5,G10,0) -> 0 | CA10: 1 | CB10: 1
C11: VVK
A12: 3 | B12: 132201101R01 | C12: Hloubení rýh šířky do 120 cm v hor.3 do 100 m3 | D12: m3 | E12: 10.8 | G12: =E12*F12 -> 0 | H12: 0 | I12: =E12*H12 -> 0 | J12: 0 | K12: =E12*J12 -> 0 | O12: 2 | AA12: 1 | AB12: 1 | AC12: 1 | AZ12: 1 | BA12: =IF(AZ12=1,G12,0) -> 0 | BB12: =IF(AZ12=2,G12,0) -> 0 | BC12: =IF(AZ12=3,G12,0) -> 0 | BD12: =IF(AZ12=4,G12,0) -> 0 | BE12: =IF(AZ12=5,G12,0) -> 0 | CA12: 1 | CB12: 1
A13: 4 | B13: 162201203R00 | C13: Vodorovné přemíst.výkopku, kolečko hor.1-4, do 10m | D13: m3 | E13: 21.6 | G13: =E13*F13 -> 0 | H13: 0 | I13: =E13*H13 -> 0 | J13: 0 | K13: =E13*J13 -> 0 | O13: 2 | AA13: 1 | AB13: 1 | AC13: 1 | AZ13: 1 | BA13: =IF(AZ13=1,G13,0) -> 0 | BB13: =IF(AZ13=2,G13,0) -> 0 | BC13: =IF(AZ13=3,G13,0) -> 0 | BD13: =IF(AZ13=4,G13,0) -> 0 | BE13: =IF(AZ13=5,G13,0) -> 0 | CA13: 1 | CB13: 1
C14: zemina pro zásyp tam a zpět: | E14: 0
C15: vnitřní výkopek: | E15: 0
C16: podlaha
A17: 5 | B17: 162701105R00 | C17: Vodorovné přemístění výkopku z hor.1-4 do 10000 m | D17: m3 | E17: 26.8 | G17: =E17*F17 -> 0 | H17: 0 | I17: =E17*H17 -> 0 | J17: 0 | K17: =E17*J17 -> 0 | O17: 2 | AA17: 1 | AB17: 1 | AC17: 1 | AZ17: 1 | BA17: =IF(AZ17=1,G17,0) -> 0 | BB17: =IF(AZ17=2,G17,0) -> 0 | BC17: =IF(AZ17=3,G17,0) -> 0 | BD17: =IF(AZ17=4,G17,0) -> 0 | BE17: =IF(AZ17=5,G17,0) -> 0 | CA17: 1 | CB17: 1
C18: přebytečná zemina: | E18: 0
C19: vnitřní výkopek: | E19: 0
A20: 6 | B20: 162701109R00 | C20: Příplatek k vod. přemístění hor.1-4 za další 1 km | D20: m3 | E20: 268 | G20: =E20*F20 -> 0 | H20: 0 | I20: =E20*H20 -> 0 | J20: 0 | K20: =E20*J20 -> 0 | O20: 2 | AA20: 1 | AB20: 1 | AC20: 1 | AZ20: 1 | BA20: =IF(AZ20=1,G20,0) -> 0 | BB20: =IF(AZ20=2,G20,0) -> 0 | BC20: =IF(AZ20=3,G20,0) -> 0 | BD20: =IF(AZ20=4,G20,0) -> 0 | BE20: =IF(AZ20=5,G20,0) -> 0 | CA20: 1 | CB20: 1
A21: 7 | B21: 167101101R00 | C21: Nakládání výkopku z hor.1-4 v množství do 100 m3 | D21: m3 | E21: 12.6 | G21: 0 | H21: 0 | I21: 0 | J21: 0 | K21: 0 | O21: 2 | AA21: 1 | AB21: 1 | AC21: 1 | AZ21: 1 | BA21: 0 | BB21: 0 | BC21: 0 | BD21: 0 | BE21: 0 | CA21: 1 | CB21: 1
A22: 8 | B22: 171201201R00 | C22: Uložení sypaniny na skl.-modelace na výšku přes 2m | D22: m3 | E22: 26.8 | G22: 0 | H22: 0 | I22: 0 | J22: 0 | K22: 0 | O22: 2 | AA22: 1 | AB22: 1 | AC22: 1 | AZ22: 1 | BA22: 0 | BB22: 0 | BC22: 0 | BD22: 0 | BE22: 0 | CA22: 1 | CB22: 1
A23: 9 | B23: 174101101R00 | C23: Zásyp jam, rýh, šachet se zhutněním | D23: m3 | E23: 10.8 | G23: 0 | H23: 0 | I23: 0 | J23: 0 | K23: 0 | O23: 2 | AA23: 1 | AB23: 1 | AC23: 1 | AZ23: 1 | BA23: 0 | BB23: 0 | BC23: 0 | BD23: 0 | BE23: 0 | CA23: 1 | CB23: 1
A24: 10 | B24: 199000002R00 | C24: Poplatek za skládku horniny 1- 4 | D24: m3 | E24: 26.8 | G24: 0 | H24: 0 | I24: 0 | J24: 0 | K24: 0 | O24: 2 | AA24: 1 | AB24: 1 | AC24: 1 | AZ24: 1 | BA24: 0 | BB24: 0 | BC24: 0 | BD24: 0 | BE24: 0 | CA24: 1 | CB24: 1
A25: 11 | B25: 58337345 | C25: Štěrkopísek frakce 0-32 C | D25: T | E25: 3.18 | G25: 0 | H25: 1 | I25: 3.18 | K25: 0 | O25: 2 | AA25: 3 | AB25: 1 | AC25: 58337345 | AZ25: 1 | BA25: 0 | BB25: 0 | BC25: 0 | BD25: 0 | BE25: 0 | CA25: 3 | CB25: 1
B26: Celkem za | C26: 1 Zemní práce | G26: =SUM(G7:G25) -> 0 | I26: =SUM(I7:I25) -> 3.18 | K26: =SUM(K7:K25) -> 0 | O26: 4 | BA26: =SUM(BA7:BA25) -> 0 | BB26: =SUM(BB7:BB25) -> 0 | BC26: =SUM(BC7:BC25) -> 0 | BD26: =SUM(BD7:BD25) -> 0 | BE26: =SUM(BE7:BE25) -> 0
A27: Díl: | B27: 2 | C27: Základy a zvláštní zakládání | O27: 1
A28: 12 | B28: 212792112R00 | C28: Montáž trativodů z flexibilních trubek, lože | D28: m | E28: 15 | G28: =E28*F28 -> 0 | H28: 0.22107 | I28: =E28*H28 -> 3.31605 | J28: 0 | K28: =E28*J28 -> 0 | O28: 2 | AA28: 1 | AB28: 1 | AC28: 1 | AZ28: 1 | BA28: =IF(AZ28=1,G28,0) -> 0 | BB28: =IF(AZ28=2,G28,0) -> 0 | BC28: =IF(AZ28=3,G28,0) -> 0 | BD28: =IF(AZ28=4,G28,0) -> 0 | BE28: =IF(AZ28=5,G28,0) -> 0 | CA28: 1 | CB28: 1
A29: 13 | B29: 216904112R00 | C29: Očištění tlakovou vodou zdiva stěn a rubu kleneb | D29: m2 | E29: 17.8 | G29: =E29*F29 -> 0 | H29: 0.001 | I29: =E29*H29 -> 0.0178 | J29: 0 | K29: =E29*J29 -> 0 | O29: 2 | AA29: 1 | AB29: 1 | AC29: 1 | AZ29: 1 | BA29: =IF(AZ29=1,G29,0) -> 0 | BB29: =IF(AZ29=2,G29,0) -> 0 | BC29: =IF(AZ29=3,G29,0) -> 0 | BD29: =IF(AZ29=4,G29,0) -> 0 | BE29: =IF(AZ29=5,G29,0) -> 0 | CA29: 1 | CB29: 1
A31: 14 | B31: 216904391R00 | C31: Přípl za ruční dočištění oc kartáči | D31: m2 | E31: 17.8 | G31: =E31*F31 -> 0 | H31: 0 | I31: =E31*H31 -> 0 | J31: 0 | K31: =E31*J31 -> 0 | O31: 2 | AA31: 1 | AB31: 1 | AC31: 1 | AZ31: 1 | BA31: =IF(AZ31=1,G31,0) -> 0 | BB31: =IF(AZ31=2,G31,0) -> 0 | BC31: =IF(AZ31=3,G31,0) -> 0 | BD31: =IF(AZ31=4,G31,0) -> 0 | BE31: =IF(AZ31=5,G31,0) -> 0 | CA31: 1 | CB31: 1
A32: 15 | B32: 28611223 | C32: Trubka PVC-U drenážní flexibilní DN 100 mm | D32: m | E32: 17.6 | G32: =E32*F32 -> 0 | H32: 0.00048 | I32: =E32*H32 -> 0.008448 | K32: =E32*J32 -> 0 | O32: 2 | AA32: 3 | AB32: 1 | AC32: 28611223 | AZ32: 1 | BA32: =IF(AZ32=1,G32,0) -> 0 | BB32: =IF(AZ32=2,G32,0) -> 0 | BC32: =IF(AZ32=3,G32,0) -> 0 | BD32: =IF(AZ32=4,G32,0) -> 0 | BE32: =IF(AZ32=5,G32,0) -> 0 | CA32: 3 | CB32: 1
B33: Celkem za | C33: 2 Základy a zvláštní zakládání | G33: =SUM(G27:G32) -> 0 | I33: =SUM(I27:I32) -> 3.342298 | K33: =SUM(K27:K32) -> 0 | O33: 4 | BA33: =SUM(BA27:BA32) -> 0 | BB33: =SUM(BB27:BB32) -> 0 | BC33: =SUM(BC27:BC32) -> 0 | BD33: =SUM(BD27:BD32) -> 0 | BE33: =SUM(BE27:BE32) -> 0
A34: Díl: | B34: 3 | C34: Svislé a kompletní konstrukce
A35: 16 | B35: 388129110R00 | C35: Montáž dílců prefa. kanálů ze ŽB tvaru L do 0,25 t | D35: kus | E35: 30.3 | G35: =SUM(E35*F35) -> 0
A36: 17 | B36: 59385119 | C36: Tvarovka přímá | D36: kus | E36: 30.3 | G36: =E36*F36 -> 0
A37: 18 | B37: 59385120 | C37: Tvarovka rohová - roh vnější | D37: kus | E37: 3.03 | G37: =E37*F37 -> 0
A38: 19 | B38: 59385121 | C38: Tvarovka rohová - roh vnitřní | D38: kus | E38: 1.01 | G38: =E38*F38 -> 0
B39: Celkem za | C39: =CONCATENATE(B34," ",C34) -> 3 Svislé a kompletní konstrukce | G39: =SUM(G34:G38) -> 0
A40: Díl: | B40: 5 | C40: Komunikace | O40: 1
A41: 20 | B41: 564851111R00 | C41: Podklad ze štěrkodrti po zhutnění tloušťky 15 cm | D41: m2 | E41: 9 | G41: =E41*F41 -> 0 | H41: 0.27994 | I41: =E41*H41 -> 2.51946 | J41: 0 | K41: =E41*J41 -> 0 | O41: 2 | AA41: 1 | AB41: 1 | AC41: 1 | AZ41: 1 | BA41: =IF(AZ41=1,G41,0) -> 0 | BB41: =IF(AZ41=2,G41,0) -> 0 | BC41: =IF(AZ41=3,G41,0) -> 0 | BD41: =IF(AZ41=4,G41,0) -> 0 | BE41: =IF(AZ41=5,G41,0) -> 0 | CA41: 1 | CB41: 1
B42: Celkem za | C42: 5 Komunikace | G42: =SUM(G40:G41) -> 0 | I42: =SUM(I40:I41) -> 2.51946 | K42: =SUM(K40:K41) -> 0 | O42: 4 | BA42: =SUM(BA40:BA41) -> 0 | BB42: =SUM(BB40:BB41) -> 0 | BC42: =SUM(BC40:BC41) -> 0 | BD42: =SUM(BD40:BD41) -> 0 | BE42: =SUM(BE40:BE41) -> 0
A43: Díl: | B43: 62 | C43: Úpravy povrchů vnější
A44: 21 | B44: 611421331R00 | C44: Infúzní clona. Rozteč vrtů cca 120mm, průměr 12-20mm, | D44: m2 | E44: 10 | G44: =E44*F44 -> 0
C45: Kiesol C
A46: 22 | B46: 612 00 | C46: Hloubková impregnace a penetrace, naředit 1:1 s vodou | D46: m2 | E46: 10 | G46: =E46*F46 -> 0
C47: Kiesol Standard
A48: 23 | B48: 612 05 | C48: Kap. aktivní omítkový systém Remmers, tl. 30 mm | D48: m2 | E48: 10 | G48: =E48*F48 -> 0
C49: Grundputz | G49: =E49*F49 -> 0
A50: 24 | B50: 612 03 | C50: Hybridní izolační stěrka. Spotřeba 5,5 kg/m2/ 2 vrstvy | D50: m2 | E50: 10 | G50: =E50*F50 -> 0
C51: Multibaudicht 2K
A52: 25 | B52: 627452101R00 | C52: Spárování maltou MCs zapuštěné rovné, zdí z kamene | D52: m2 | E52: 34 | G52: =E52*F52 -> 0
B53: Celkem za | C53: 62 Úpravy povrchů vnější | G53: =SUM(G43:G52) -> 0
A54: Díl: | B54: 8 | C54: Trubní vedení
A55: 26 | B55: 899661311R00 | C55: Zřízení filtračního obalu dren.trubek DN do 130 mm | D55: m | E55: 34 | G55: =E55*F55 -> 0
A56: 27 | B56: 69366055 | C56: GEOFILTEX 63 100% PP 63/30 300 g/m2 šíře do 8,8m | D56: m2 | E56: 17.62 | G56: =E56*F56 -> 0
B58: Celkem za | C58: 8 Trubní vedení | G58: =SUM(G54:G57) -> 0
A59: Díl: | B59: 96 | C59: Bourání konstrukcí
A60: 28 | B60: 965042141R00 | C60: Bourání mazanin betonových tl. 10 cm, nad 4 m2 | D60: m3 | E60: 5.9375 | G60: =E60*F60 -> 0
A61: 29 | B61: 965081713R00 | C61: Bourání dlaždic keramických tl. 1 cm, nad 1 m2 | D61: m2 | E61: 12 | G61: =E61*F61 -> 0 | H61: 1
B62: Celkem za | C62: 96 Bourání konstrukcí | G62: =SUM(G59:G61) -> 0
A63: Díl: | B63: 97 | C63: Prorážení otvorů
A64: 30 | B64: 970031160R00 | C64: Vrtání jádrové do zdiva cihelného do D 160 mm | D64: m | E64: 1 | G64: =E64*F64 -> 0
A65: 31 | B65: 978023251R00 | C65: Vysekání a úprava spár zdiva kamenného režného | D65: m2 | E65: 40.8 | G65: =E65*F65 -> 0
B66: Celkem za | C66: 97 Prorážení otvorů | G66: =SUM(G63:G65) -> 0
A67: Díl: | B67: 711 | C67: Izolace proti vodě
A68: 32 | B68: 711472053R00 | C68: Izol pr vodě S fólie z PE pol volně | D68: m2 | E68: 30.3 | G68: =E68*F68 -> 0
A70: 33 | B70: 283220893 | C70: Fólie hydroizolační PVC tl. 0,8 mm | D70: m2 | E70: 34.56 | G70: =E70*F70 -> 0
A72: 34 | B72: 998711201R00 | C72: Přesun hmot pro izolace proti vodě, výšky do 6 m | D72: % | E72: 56.29 | G72: =E72*F72 -> 0 | H72: 0.02214 | I72: =E52*H72 -> 0.75276 | J72: 0 | K72: =E52*J72 -> 0 | O72: 2 | AA72: 1 | AB72: 1 | AC72: 1 | AZ72: 1 | BA72: =IF(AZ72=1,G52,0) -> 0 | BB72: =IF(AZ72=2,G52,0) -> 0 | BC72: =IF(AZ72=3,G52,0) -> 0 | BD72: =IF(AZ72=4,G52,0) -> 0 | BE72: =IF(AZ72=5,G52,0) -> 0 | CA72: 1 | CB72: 1
B73: Celkem za | C73: 711 Izolace proti vodě | G73: =SUM(G67:G72) -> 0 | I73: =SUM(I61:I72) -> 0.75276 | K73: =SUM(K61:K72) -> 0 | O73: 4 | BA73: =SUM(BA61:BA72) -> 0 | BB73: =SUM(BB61:BB72) -> 0 | BC73: =SUM(BC61:BC72) -> 0 | BD73: =SUM(BD61:BD72) -> 0 | BE73: =SUM(BE61:BE72) -> 0
A74: Díl: | B74: 764 | C74: Konstrukce klempířské | O74: 1
A75: 35 | B75: 764 00 | C75: Úprava dešť.svodu-lapač.nečistot,atyp.ventil.dílec litin.trouba - dle PD | D75: kpl | E75: 1 | G75: =E75*F75 -> 0 | H75: 2.525 | I75: =#REF!*H75 ->  | J75: 0 | K75: =#REF!*J75 ->  | O75: 2 | AA75: 1 | AB75: 1 | AC75: 1 | AZ75: 1 | BA75: =IF(AZ75=1,#REF!,0) ->  | BB75: =IF(AZ75=2,#REF!,0) -> 0 | BC75: =IF(AZ75=3,#REF!,0) -> 0 | BD75: =IF(AZ75=4,#REF!,0) -> 0 | BE75: =IF(AZ75=5,#REF!,0) -> 0 | CA75: 1 | CB75: 1
A76: 36 | B76: 764 02 | C76: rošt nasávací atyp 800x600. Včetně redukční clony 300x200 | D76: kpl | E76: 2 | G76: 0 | H76: 0 | I76: =#REF!*H76 ->  | J76: 0 | K76: =#REF!*J76 ->  | O76: 2 | AA76: 1 | AB76: 1 | AC76: 1 | AZ76: 1 | BA76: =IF(AZ76=1,#REF!,0) ->  | BB76: =IF(AZ76=2,#REF!,0) -> 0 | BC76: =IF(AZ76=3,#REF!,0) -> 0 | BD76: =IF(AZ76=4,#REF!,0) -> 0 | BE76: =IF(AZ76=5,#REF!,0) -> 0 | CA76: 1 | CB76: 1
A77: 37 | B77: 998764201R00 | C77: Přesun hmot pro klempířské konstr., výšky do 6 m | D77: % | E77: 316 | G77: 0 | H77: 0.27827 | I77: =#REF!*H77 ->  | J77: 0 | K77: =#REF!*J77 ->  | O77: 2 | AA77: 1 | AB77: 1 | AC77: 1 | AZ77: 1 | BA77: =IF(AZ77=1,#REF!,0) ->  | BB77: =IF(AZ77=2,#REF!,0) -> 0 | BC77: =IF(AZ77=3,#REF!,0) -> 0 | BD77: =IF(AZ77=4,#REF!,0) -> 0 | BE77: =IF(AZ77=5,#REF!,0) -> 0 | CA77: 1 | CB77: 1
B78: Celkem za | C78: 764 Konstrukce klempířské | G78: =SUM(G74:G77) -> 0
A79: Díl: | B79: 784 | C79: Malby | H79: 2 | T79: 2 | U79: 1 | V79: 1 | AS79: 1 | AT79: =IF(AS79=1,#REF!,0) ->  | AU79: =IF(AS79=2,#REF!,0) -> 0 | AV79: =IF(AS79=3,#REF!,0) -> 0 | AW79: =IF(AS79=4,#REF!,0) -> 0 | AX79: =IF(AS79=5,#REF!,0) -> 0 | BT79: 2 | BU79: 1
A80: 38 | B80: 784191101R00 | C80: Vnitřní sanační difúzní barva | D80: m2 | E80: 228 | G80: =E80*F80 -> 0
C81: Sanierputzfarbe | H81: 2 | T81: 3 | U81: 1 | V81: 5924626090 | AS81: 1 | AT81: =IF(AS81=1,#REF!,0) ->  | AU81: =IF(AS81=2,#REF!,0) -> 0 | AV81: =IF(AS81=3,#REF!,0) -> 0 | AW81: =IF(AS81=4,#REF!,0) -> 0 | AX81: =IF(AS81=5,#REF!,0) -> 0 | BT81: 3 | BU81: 1
B82: Celkem za | C82: =CONCATENATE(B79," ",C79) -> 784 Malby | G82: =SUM(G79:G81) -> 0
A83: Díl: | B83: D96 | C83: Přesuny suti a vybouraných hmot | H83: 4 | AT83: =SUM(BA74:BA82) ->  | AU83: =SUM(BB74:BB82) -> 0 | AV83: =SUM(BC74:BC82) -> 0 | AW83: =SUM(BD74:BD82) -> 0 | AX83: =SUM(BE74:BE82) -> 0
A84: 39 | B84: 979081111R00 | C84: Odvoz suti a vybour. hmot na skládku do 1 km | D84: t | E84: 16.8 | G84: =E84*F84 -> 0 | H84: 1
A85: 40 | B85: 979081121R00 | C85: Příplatek k odvozu za každý další 1 km | D85: t | E85: 239.4 | G85: 0 | H85: 2 | T85: 1 | U85: 1 | V85: 1 | AS85: 1 | AT85: =IF(AS85=1,G55,0) -> 0 | AU85: =IF(AS85=2,G55,0) -> 0 | AV85: =IF(AS85=3,G55,0) -> 0 | AW85: =IF(AS85=4,G55,0) -> 0 | AX85: =IF(AS85=5,G55,0) -> 0 | BT85: 1 | BU85: 1
A86: 41 | B86: 979082111R00 | C86: Vnitrostaveništní doprava suti do 10 m | D86: t | E86: 16.8 | G86: 0 | H86: 2 | T86: 3 | U86: 1 | V86: 69366055 | AS86: 1 | AT86: =IF(AS86=1,G56,0) -> 0 | AU86: =IF(AS86=2,G56,0) -> 0 | AV86: =IF(AS86=3,G56,0) -> 0 | AW86: =IF(AS86=4,G56,0) -> 0 | AX86: =IF(AS86=5,G56,0) -> 0 | BT86: 3 | BU86: 1
A87: 42 | B87: 979082121R00 | C87: Příplatek k vnitrost. dopravě suti za dalších 5 m | D87: t | E87: 168 | G87: 0
A88: 43 | B88: 979087112R00 | C88: Nakládání suti na dopravní prostředky | D88: t | E88: 16.8 | G88: 0 | I88: =SUM(I84:I87) -> 0 | K88: =SUM(K84:K87) -> 0 | O88: 4 | BA88: =SUM(BA84:BA87) -> 0 | BB88: =SUM(BB84:BB87) -> 0 | BC88: =SUM(BC84:BC87) -> 0 | BD88: =SUM(BD84:BD87) -> 0 | BE88: =SUM(BE84:BE87) -> 0
A89: 44 | B89: 979093111R00 | C89: Uložení suti na skládku bez zhutnění | D89: t | E89: 16.8 | G89: 0 | O89: 1
A90: 45 | B90: 979990001R00 | C90: Poplatek za skládku stavební suti | D90: t | E90: 16.8 | G90: 0 | H90: 0 | I90: =E60*H90 -> 0 | J90: -2.2 | K90: =E60*J90 -> -13.0625 | O90: 2 | AA90: 1 | AB90: 1 | AC90: 1 | AZ90: 1 | BA90: =IF(AZ90=1,G60,0) -> 0 | BB90: =IF(AZ90=2,G60,0) -> 0 | BC90: =IF(AZ90=3,G60,0) -> 0 | BD90: =IF(AZ90=4,G60,0) -> 0 | BE90: =IF(AZ90=5,G60,0) -> 0 | CA90: 1 | CB90: 1
B91: Celkem za | C91: D96 Přesuny suti a vybouraných hmot | G91: =SUM(G83:G90) -> 0 | H91: 0 | I91: =E61*H91 -> 0 | J91: -0.02 | K91: =E61*J91 -> -0.24 | O91: 2 | AA91: 1 | AB91: 1 | AC91: 1 | AZ91: 1 | BA91: =IF(AZ91=1,G61,0) -> 0 | BB91: =IF(AZ91=2,G61,0) -> 0 | BC91: =IF(AZ91=3,G61,0) -> 0 | BD91: =IF(AZ91=4,G61,0) -> 0 | BE91: =IF(AZ91=5,G61,0) -> 0 | CA91: 1 | CB91: 1
I92: =SUM(I89:I91) -> 0 | K92: =SUM(K89:K91) -> -13.3025 | O92: 4 | BA92: =SUM(BA89:BA91) -> 0 | BB92: =SUM(BB89:BB91) -> 0 | BC92: =SUM(BC89:BC91) -> 0 | BD92: =SUM(BD89:BD91) -> 0 | BE92: =SUM(BE89:BE91) -> 0
O93: 1
H94: 0 | I94: =E64*H94 -> 0 | J94: -0.00214 | K94: =E64*J94 -> -0.00214 | O94: 2 | AA94: 1 | AB94: 1 | AC94: 1 | AZ94: 1 | BA94: =IF(AZ94=1,G64,0) -> 0 | BB94: =IF(AZ94=2,G64,0) -> 0 | BC94: =IF(AZ94=3,G64,0) -> 0 | BD94: =IF(AZ94=4,G64,0) -> 0 | BE94: =IF(AZ94=5,G64,0) -> 0 | CA94: 1 | CB94: 1
H95: 0 | I95: =E65*H95 -> 0 | J95: -0.014 | K95: =E65*J95 -> -0.5712 | O95: 2 | AA95: 1 | AB95: 1 | AC95: 1 | AZ95: 1 | BA95: =IF(AZ95=1,G65,0) -> 0 | BB95: =IF(AZ95=2,G65,0) -> 0 | BC95: =IF(AZ95=3,G65,0) -> 0 | BD95: =IF(AZ95=4,G65,0) -> 0 | BE95: =IF(AZ95=5,G65,0) -> 0 | CA95: 1 | CB95: 1
I96: =SUM(I93:I95) -> 0 | K96: =SUM(K93:K95) -> -0.57334 | O96: 4 | BA96: =SUM(BA93:BA95) -> 0 | BB96: =SUM(BB93:BB95) -> 0 | BC96: =SUM(BC93:BC95) -> 0 | BD96: =SUM(BD93:BD95) -> 0 | BE96: =SUM(BE93:BE95) -> 0
O97: 1
H98: 0 | I98: =#REF!*H98 ->  | K98: =#REF!*J98 ->  | O98: 2 | AA98: 7 | AB98: 1 | AC98: 2 | AZ98: 1 | BA98: =IF(AZ98=1,#REF!,0) ->  | BB98: =IF(AZ98=2,#REF!,0) -> 0 | BC98: =IF(AZ98=3,#REF!,0) -> 0 | BD98: =IF(AZ98=4,#REF!,0) -> 0 | BE98: =IF(AZ98=5,#REF!,0) -> 0 | CA98: 7 | CB98: 1
I99: =SUM(I97:I98) ->  | K99: =SUM(K97:K98) ->  | O99: 4 | BA99: =SUM(BA97:BA98) ->  | BB99: =SUM(BB97:BB98) -> 0 | BC99: =SUM(BC97:BC98) -> 0 | BD99: =SUM(BD97:BD98) -> 0 | BE99: =SUM(BE97:BE98) -> 0
O100: 1
H101: 0.00017 | I101: =E68*H101 -> 0.005151 | J101: 0 | K101: =E68*J101 -> 0 | O101: 2 | AA101: 1 | AB101: 7 | AC101: 7 | AZ101: 2 | BA101: =IF(AZ101=1,G68,0) -> 0 | BB101: =IF(AZ101=2,G68,0) -> 0 | BC101: =IF(AZ101=3,G68,0) -> 0 | BD101: =IF(AZ101=4,G68,0) -> 0 | BE101: =IF(AZ101=5,G68,0) -> 0 | CA101: 1 | CB101: 7
H103: 0.00102 | I103: =E70*H103 -> 0.0352512 | K103: =E70*J103 -> 0 | O103: 2 | AA103: 3 | AB103: 0 | AC103: 283220893 | AZ103: 2 | BA103: =IF(AZ103=1,G70,0) -> 0 | BB103: =IF(AZ103=2,G70,0) -> 0 | BC103: =IF(AZ103=3,G70,0) -> 0 | BD103: =IF(AZ103=4,G70,0) -> 0 | BE103: =IF(AZ103=5,G70,0) -> 0 | CA103: 3 | CB103: 0
H105: 0 | I105: =E72*H105 -> 0 | K105: =E72*J105 -> 0 | O105: 2 | AA105: 7 | AB105: 1002 | AC105: 5 | AZ105: 2 | BA105: =IF(AZ105=1,G72,0) -> 0 | BB105: =IF(AZ105=2,G72,0) -> 0 | BC105: =IF(AZ105=3,G72,0) -> 0 | BD105: =IF(AZ105=4,G72,0) -> 0 | BE105: =IF(AZ105=5,G72,0) -> 0 | CA105: 7 | CB105: 1002
I106: =SUM(I100:I105) -> 0.0404022 | K106: =SUM(K100:K105) -> 0 | O106: 4 | BA106: =SUM(BA100:BA105) -> 0 | BB106: =SUM(BB100:BB105) -> 0 | BC106: =SUM(BC100:BC105) -> 0 | BD106: =SUM(BD100:BD105) -> 0 | BE106: =SUM(BE100:BE105) -> 0
O131: 1
H132: 0.00021 | I132: =#REF!*H132 ->  | J132: 0 | K132: =#REF!*J132 ->  | O132: 2 | AA132: 1 | AB132: 7 | AC132: 7 | AZ132: 2 | BA132: =IF(AZ132=1,#REF!,0) -> 0 | BB132: =IF(AZ132=2,#REF!,0) ->  | BC132: =IF(AZ132=3,#REF!,0) -> 0 | BD132: =IF(AZ132=4,#REF!,0) -> 0 | BE132: =IF(AZ132=5,#REF!,0) -> 0 | CA132: 1 | CB132: 7
H133: 0.00475 | I133: =#REF!*H133 ->  | J133: 0 | K133: =#REF!*J133 ->  | O133: 2 | AA133: 1 | AB133: 7 | AC133: 7 | AZ133: 2 | BA133: =IF(AZ133=1,#REF!,0) -> 0 | BB133: =IF(AZ133=2,#REF!,0) ->  | BC133: =IF(AZ133=3,#REF!,0) -> 0 | BD133: =IF(AZ133=4,#REF!,0) -> 0 | BE133: =IF(AZ133=5,#REF!,0) -> 0 | CA133: 1 | CB133: 7
H134: 0.0192 | I134: =#REF!*H134 ->  | K134: =#REF!*J134 ->  | O134: 2 | AA134: 3 | AB134: 7 | AC134: 597642030 | AZ134: 2 | BA134: =IF(AZ134=1,#REF!,0) -> 0 | BB134: =IF(AZ134=2,#REF!,0) ->  | BC134: =IF(AZ134=3,#REF!,0) -> 0 | BD134: =IF(AZ134=4,#REF!,0) -> 0 | BE134: =IF(AZ134=5,#REF!,0) -> 0 | CA134: 3 | CB134: 7
H135: 0 | I135: =#REF!*H135 ->  | K135: =#REF!*J135 ->  | O135: 2 | AA135: 7 | AB135: 1002 | AC135: 5 | AZ135: 2 | BA135: =IF(AZ135=1,#REF!,0) -> 0 | BB135: =IF(AZ135=2,#REF!,0) ->  | BC135: =IF(AZ135=3,#REF!,0) -> 0 | BD135: =IF(AZ135=4,#REF!,0) -> 0 | BE135: =IF(AZ135=5,#REF!,0) -> 0 | CA135: 7 | CB135: 1002
I136: =SUM(I131:I135) ->  | K136: =SUM(K131:K135) ->  | O136: 4 | BA136: =SUM(BA131:BA135) -> 0 | BB136: =SUM(BB131:BB135) ->  | BC136: =SUM(BC131:BC135) -> 0 | BD136: =SUM(BD131:BD135) -> 0 | BE136: =SUM(BE131:BE135) -> 0
